Workbook

Sheet 1a
A1: Sorszám | B1: Bevételi jogcím | C1: 2010. évi tény | D1: 2011. évi
D2: eredeti ei. | E2: mód. ei. | F2: teljesítés
A3: 1. | B3: I. Önkormányzat működési bevételei | C3: =SUM(C4:C5) -> 308766 | D3: =SUM(D4:D5) -> 283872 | E3: =SUM(E4:E5) -> 371372 | F3: =SUM(F4:F5) -> 372060
A4: 2. | B4: I/1. Intézményi működési bevételek | C4: 44013 | D4: 17085 | E4: 49679 | F4: 51313
A5: 3. | B5: I/2.Önkormányzat sajátos műkődési bevételei | C5: =SUM(C6:C8) -> 264753 | D5: =SUM(D6:D8) -> 266787 | E5: =SUM(E6:E8) -> 321693 | F5: =SUM(F6:F8) -> 320747
A6: 4. | B6: Helyi adók | C6: 233433 | D6: 218000 | E6: 272906 | F6: 272909
A7: 5. | B7: Átengedett központi adók | C7: 20425 | D7: 5704 | E7: 5704 | F7: 5866
A8: 6. | B8: Bírságok, egyéb sajátos bevételek | C8: 10895 | D8: 43083 | E8: 43083 | F8: 41972
A9: 7. | B9: II. Felhalmozási és tőkejellegű bevételek | C9: =SUM(C10:C12) -> 13890 | D9: =SUM(D10:D12) -> 24 | E9: =SUM(E10:E12) -> 12366 | F9: =SUM(F10:F12) -> 10656
A10: 8. | B10: Tárgyi eszközök, immateriális javak értékesítése | C10: 3143 | E10: 566 | F10: 566
A11: 9. | B11: Önkorm. sajátos felhalm. és tőkebevételei | C11: 9650 | D11: 24 | E11: 10663 | F11: 8953
A12: 10. | B12: Pénzügyi befektetések bevételei (osztalék) | C12: 1097 | E12: 1137 | F12: 1137
A13: 11. | B13: III. Támogatások, kiegészítések | C13: =SUM(C14:C17) -> 127564 | D13: =SUM(D14:D17) -> 82636 | E13: =SUM(E14:E17) -> 126934 | F13: =SUM(F14:F17) -> 126934
A14: 12. | B14: Normatív hozzájárulások | C14: 69870 | D14: 82138 | E14: 82041 | F14: 82041
A15: 13. | B15: Központosított támogatás | C15: 50332 | E15: 40099 | F15: 40099
B16: egyéb központi támogatás | E16: 1588 | F16: 1588
A17: 14. | B17: Normatív kötött felhasználású támogatás | C17: 7362 | D17: 498 | E17: 3206 | F17: 3206
A18: 15. | B18: IV. Véglegesen átvett pénzeszközök | C18: =SUM(C19,C26:C29,) -> 30935 | D18: =SUM(D19,D27,D28,D29,) -> 85846 | E18: 83297 | F18: =SUM(F19,F26:F29,) -> 83602
A19: 16. | B19: Támogatásértékű működési bevételek | C19: =SUM(C20:C25) -> 9145 | D19: =SUM(D20:D25) -> 7615 | E19: =SUM(E20:E25) -> 9940 | F19: =SUM(F20:F25) -> 10241
A20: 17. | B20: OEP-től átvett pénzeszköz | C20: 3490 | D20: 3600 | E20: 3600 | F20: 3663
A21: 18. | B21: Kistérségtől átvett pénzeszköz | C21: 339 | D21: 300 | E21: 440 | F21: 449
A22: 19. | B22: Elkülönített állami pénzalapoktól átvett | E22: 897 | F22: 897
A23: 20. | B23: Könyvtár TÁMOP pályázat | C23: 1750 | D23: 3149 | E23: 2749 | F23: 2748
B24: Tám. Ért. Bev. Önkormányzattól | F24: 356
A25: 21. | B25: Központi kvi szervtől átvett támogatás | C25: 3566 | D25: 566 | E25: 2254 | F25: 2128
A26: 22. | B26: Előző évi támogatás központi kvi szervtől | C26: 185 | E26: 144 | F26: 144
A27: 23. | B27: Támogatásértékű felhalmozási bevételek | C27: 20689 | D27: 78231 | E27: 72913 | F27: 72914
A28: 24. | B28: Műk.célú p.e. átvétel ÁH-on kívülről | C28: 36 | F28: 3
A29: 25. | B29: Felhalm.célú p.e. átvétel ÁH-on kívülről | C29: 880 | E29: 300 | F29: 300
A30: 26. | B30: V. Támogatások, kölcsönök visszatérülése, igénybev.értékpapírok bev. | C30: =SUM(C31:C32) -> 629 | D30: =SUM(D31:D32) -> 400 | E30: =SUM(E31:E32) -> 820 | F30: =SUM(F31:F32) -> 841
A31: 27. | B31: Működési célú kölcsön visszatér., értékpapír bev. | C31: 465 | D31: 260 | E31: 680 | F31: 687
A32: 28. | B32: Felhalmozási célú kölcsön visszatér., ért.papír bev. | C32: 164 | D32: 140 | E32: 140 | F32: 154
A33: 29. | B33: VI. Finanszírozási bevételek
A34: 30. | B34: Hitelek, kölcsönök bevételei
A35: 31. | B35: Értékpapírok bevételei
A36: 32. | B36: TÁRGYÉVI KÖLTSÉGVETÉSI BEVÉTELEK ÖSSZESEN | C36: =SUM(C3,C9,C13,C18,C30,) -> 481784 | D36: =SUM(D3,D9,D13,D18,D30,) -> 452778 | E36: =SUM(E3,E9,E13,E18,E30,) -> 594789 | F36: =SUM(F3,F9,F13,F18,F30,) -> 594093
A37: 33. | B37: Előző évi várható pénzmaradvány igénybevétele | C37: 177894 | D37: 77000 | E37: 92164 | F37: 92163
A38: 34. | B38: Működési célú pénzmaradvány igénybevétele
A39: 35. | B39: Felhalmozási célú pénzmaradvány igénybev.
A40: 36. | B40: Kiegyenlítő, függő, átfutó bevételek | C40: -3924 | F40: -2664
A41: 37. | B41: BEVÉTELEK MINDÖSSZESEN | C41: =SUM(C3,C9,C13,C18,C30,C37,C40,) -> 655754 | D41: =SUM(D3,D9,D13,D18,D30,D37,) -> 529778 | E41: =SUM(E3,E9,E13,E18,E30,E37,) -> 686953 | F41: =SUM(F3,F9,F13,F18,F30,F37,F40,) -> 683592

Sheet 1b
A1: Sorszám | B1: Kiadási jogcím | C1: 2010. évi tény | D1: 2011. évi
D2: eredeti ei. | E2: mód. ei. | F2: teljesítés
A3: 1. | B3: I. Folyó (működési) kiadások | C3: =SUM(C4:C6) -> 385025 | D3: =SUM(D4:D6) -> 316619 | E3: =SUM(E4:E6) -> 336302 | F3: =SUM(F4:F6) -> 321358
A4: 2. | B4: Személyi juttatások | C4: 175951 | D4: 168394 | E4: 171821 | F4: 170330
A5: 3. | B5: Munkaadókat terhelő járulékok | C5: 42464 | D5: 42914 | E5: 43559 | F5: 43105
A6: 4. | B6: Dologi kiadások, egyéb folyó kiadások | C6: 166610 | D6: 105311 | E6: 120922 | F6: 107923
A7: 5. | B7: II.Támogatásértékű működési kiadás | C7: 4816 | D7: 6800 | E7: 6800 | F7: 5293
A8: 6. | B8: III. Műk.célú pénzeszköz átadás ÁH-on kívülre | C8: 23318 | D8: 2732 | E8: 43335 | F8: 42442
A9: 7. | B9: IV. Társadalom- és szociálpolitikai juttatások | C9: 15555 | D9: 11625 | E9: 16240 | F9: 15219
A10: 8. | B10: V. Ellátottak pénzbeli juttatása | C10: 475 | D10: 600 | E10: 705 | F10: 705
A11: 9. | B11: VI. Pénzforgalom nélküli kiadások
A12: 10. | B12: VII. Szociális kölcsön. Kölcsönök nyújtása | C12: 563 | D12: 500 | E12: 1318 | F12: 1315
A13: 11. | B13: VIII. Felhalmozási és tőkejellegű kiadások | C13: =SUM(C14:C17) -> 137578 | D13: =SUM(D14:D17) -> 87796 | E13: =SUM(E14:E17) -> 102739 | F13: =SUM(F14:F17) -> 98489
A14: 12. | B14: Felújítás | C14: 33434 | E14: 12300 | F14: 8656
A15: 13. | B15: Intézményi beruházási kiadások | C15: 103784 | D15: 87796 | E15: 90439 | F15: 89822
A16: 14. | B16: Támogatásértékű felhalmozási kiadás | F16: 11
A17: 15. | B17: Felhalm.célú pénzeszköz átadás ÁH-on kívülre | C17: 360
A18: 16. | B18: KÖLTSÉGVETÉSI KIADÁSOK ÖSSZESEN | C18: =SUM(C3,C7:C13,) -> 567330 | D18: =SUM(D3,D7:D13,) -> 426672 | E18: =SUM(E3,E7:E13,) -> 507439 | F18: =SUM(F3,F7:F13,) -> 484821
A19: 17. | B19: IX. Tartalékok | D19: =SUM(D20:D21,D25,) -> 103106 | E19: =SUM(E20,E21,E25,) -> 179514
A20: 18. | B20: Általános tartalék | D20: 9995 | E20: 33125
A21: 19. | B21: Céltartalék | D21: =SUM(D22:D24) -> 50911 | E21: =SUM(E22:E23) -> 54128
A22: 20. | B22: Környezetvédelmi Alap | D22: 7600 | E22: 5131
A23: 21. | B23: Vízügyi Alap | D23: 43221 | E23: 48997
A24: 22. | B24: iskola inform. Pályázat | D24: 90
A25: 23. | B25: Felhalmozási tartalék | D25: 42200 | E25: 92261
A26: 24. | B26: X. Hitelek kamatai
A27: 25. | B27: XI. Egyéb kiadások
A28: 26. | B28: XII. Finanszírozási kiadások | C28: =SUM(C29) -> 0 | D28: =SUM(D29:D30) -> 0 | E28: =SUM(E29) -> 0 | F28: =SUM(F29) -> 0
A29: 27. | B29: Hitelek, kölcsönök kiadásai
A30: 28. | B30: Értékpapírok kiadásai
A31: 29. | B31: XIII. Egyéb függő, átfutó, kiegyenlítő kiadások | C31: 4184 | F31: -7482
A32: 30. | B32: KIADÁSOK ÖSSZESEN | C32: =SUM(C3,C7:C13,C28,C31,) -> 571514 | D32: =SUM(D3,D7:D13,D19,D28,) -> 529778 | E32: =SUM(E3,E7:E13,E19,E28,) -> 686953 | F32: =SUM(F3,F7:F13,F28,F31,) -> 477339

Sheet 1c
A1: BEVÉTELEK | I1: KIADÁSOK
A2: Megnevezés | E2: 2010. évi tény | F2: 2011 évi ei. | H2: Teljesítés | I2: Megnevezés | M2: 2010 évi tény | N2: 2011. évi ei. | P2: Teljesítés
F3: eredeti | G3: mód. | N3: eredeti | O3: mód.
A4: Intézményi működési bevételek | E4: 44013 | F4: 17085 | G4: 49679 | H4: 51313 | I4: Személyi juttatások | M4: 175951 | N4: 168394 | O4: 171821 | P4: 170330
A5: Sajátos működési bevételek | E5: 264753 | F5: 266787 | G5: 321693 | H5: 320747 | I5: Munkaadókat terhelő járulékok | M5: 42464 | N5: 42914 | O5: 43559 | P5: 43105
A6: Központi költségvetésből kapott tám. | E6: 127564 | F6: 82636 | G6: 126934 | H6: 126934 | I6: Dologi kiadások | M6: 166610 | N6: 105311 | O6: 120922 | P6: 107923
A7: Támogatásértékű bevételek | E7: 9145 | F7: 7615 | G7: 9940 | H7: 10241 | I7: Ellátottak juttatásai, szoc.pol. támogatások | M7: 16030 | N7: 12225 | O7: 16945 | P7: 15924
A8: Működési célú pénzeszköz átvétel | E8: 36 | H8: 3 | I8: Támogatások, átadott pénzeszközök | M8: 28134 | N8: 9532 | O8: 50135 | P8: 47735
A9: Működési célú kölcsönök bevétele | E9: 465 | F9: 260 | G9: 680 | H9: 687 | I9: Működési célú kölcsönök kiadásai | M9: 563 | N9: 500 | O9: 960 | P9: 957
A10: Előző évi költségvetési támogatás | E10: 185 | G10: 144 | H10: 144 | I10: Működési célú tartalék | N10: 17685 | O10: 38256
A11: Működési bevételek összesen: | E11: =SUM(E4:E10) -> 446161 | F11: =SUM(F4:F10) -> 374383 | G11: =SUM(G4:G10) -> 509070 | H11: =SUM(H4:H10) -> 510069
I13: Működési kiadások összesen: | M13: =SUM(M4:M12) -> 429752 | N13: =SUM(N4:N12) -> 356561 | O13: =SUM(O4:O12) -> 442598 | P13: =SUM(P4:P12) -> 385974
A14: Felhalmozási és tőkejellegű bevételek | E14: 13890 | F14: 24 | G14: 12366 | H14: 10656
A15: Felhalmozási célú pénzeszköz átvétel | E15: 880 | G15: 300 | H15: 300 | I15: Felhalmozási kiadások | M15: 103784 | N15: 87796 | O15: 90439 | P15: 89822
A16: Tartósan adott kölcsönök visszatérülése | E16: 164 | F16: 140 | G16: 140 | H16: 154 | I16: Felújítási kiadások | M16: 33434 | O16: 12300 | P16: 8656
A17: Támogatásértékű bevételek | E17: 20689 | F17: 78231 | G17: 72913 | H17: 72914 | I17: Felhalmozási célú pénzeszköz átadás | M17: 360 | P17: 11
I18: felhalmozási célú kölcsön nyújtása | O18: 358 | P18: 358
A19: Felhalmozási bevételek összesen: | E19: =SUM(E14:E17) -> 35623 | F19: =SUM(F14:F17) -> 78395 | G19: =SUM(G14:G17) -> 85719 | H19: =SUM(H14:H17) -> 84024 | I19: Felhalmozási célú tartalék | N19: 85421 | O19: 141258
I21: Felhalmozási kiadások összesen: | M21: =SUM(M15:M20) -> 137578 | N21: =SUM(N15:N20) -> 173217 | O21: =SUM(O15:O20) -> 244355 | P21: =SUM(P15:P20) -> 98847
A23: Költségvetési bevételek összesen: | E23: =SUM(E11,E19,) -> 481784 | F23: =SUM(F11,F19,) -> 452778 | G23: =SUM(G11,G19,) -> 594789 | H23: =SUM(H11,H19,) -> 594093 | I23: Költségvetési kiadások összesen: | M23: =SUM(M13,M21,) -> 567330 | N23: =SUM(N13,N21,) -> 529778 | O23: =SUM(O13,O21,) -> 686953 | P23: =SUM(P13,P21,) -> 484821
A26: Költségvetési hiány/többlet: | E26: -85546 | F26: -77000 | G26: -92164 | H26: 109272
A28: Költségvetési hiány finanszírozása, költségvetési többlet felhasználása
A29: Finanszírozási műveletek
A30: Működési célú pénzmaradvány | E30: 30719 | F30: 33779 | G30: 48943 | H30: 48942
A31: Felhalmozási célú pénzmaradvány | E31: 147175 | F31: 43221 | G31: 43221 | H31: 43221
A32: Értékpapírból származó bevétel
A33: Egyéb finanszírozási műveletek | E33: -3924 | H33: -2264
A34: Belső finanszírozás | E34: 173970 | F34: 77000 | G34: 92164 | H34: 89499
A36: Külső finanszírozás | I36: Egyéb finanszírozási kiadások | M36: 4184 | P36: -7482
A37: Bevételek mindösszesen: | E37: =SUM(E23,E34,) -> 655754 | F37: =SUM(F23,F34,) -> 529778 | G37: =SUM(G23,G34,) -> 686953 | H37: =SUM(H23,H34,) -> 683592 | I37: Kiadások összesen: | M37: =SUM(M23,M36,) -> 571514 | N37: =SUM(N23,N36,) -> 529778 | O37: =SUM(O23,O36,) -> 686953 | P37: =SUM(P23,P36,) -> 477339

Sheet 2a
A1: Sorsz. | B1: Megnevezés | C1: 2011. évi módosított előirányzat | D1: 2011. évi teljesítés | E1: %
A3: B E V É T E L E K
A4: 1. | B4: Intézményi működési bevételek | C4: 49679 | D4: 51313 | E4: =SUM(D4/C4) -> 1.032891161
A5: 2. | B5: Önkormányzatok sajátos működési bevételei | C5: =SUM(C6:C8) -> 321693 | D5: =SUM(D6:D8) -> 320747 | E5: 0.9970593081
B6: Helyi adók | C6: 272906 | D6: 272909 | E6: 1.000010993
B7: Átengedett központi adók | C7: 5704 | D7: 5866 | E7: 1.028401122
B8: Egyéb bevételek, bírságok, pótlékok | C8: 43083 | D8: 41972 | E8: 0.9742125664
A9: 3. | B9: Önkormányzatok költségvetési támogatása | C9: =SUM(C10:C13) -> 126934 | D9: =SUM(D10:D13) -> 126934 | E9: 1
B10: Normatív hozzájárulás | C10: 82041 | D10: 82041 | E10: 1
B11: Központosított előirányzatok | C11: 40099 | D11: 40099 | E11: 1
B12: Egyéb központi támogatások | C12: 1588 | D12: 1588 | E12: 1
B13: Normatív kötött felhasználású támogatások | C13: 3206 | D13: 3206 | E13: 1
A14: 4. | B14: Működési célú támogatásértékű bevételek | C14: 9940 | D14: 10241 | E14: =SUM(D14/C14) -> 1.03028169
B15: -ebből OEP | C15: 3600 | D15: 3663 | E15: =SUM(D15/C15) -> 1.0175
A16: 5. | B16: Előző évi támogatás központi kvi szervtől | C16: 144 | D16: 144 | E16: =SUM(D16/C16) -> 1
A17: 6. | B17: Államháztartáson kívülről átvett működési célú pénzeszközök | D17: 3
A18: 7. | B18: Adott kölcsönök visszatérülése | C18: 680 | D18: 687 | E18: =SUM(D18/C18) -> 1.010294118
A19: 8. | B19: Finanszírozási bevételek
A20: 9. | B20: Pénzforgalom nélküli bevételek | C20: =SUM(C21:C22) -> 48943 | D20: 48942 | E20: =SUM(D20/C20) -> 0.9999795681
B21: Pénzmaradvány igénybevétele | C21: 48943 | D21: 48942 | E21: =SUM(D21/C21) -> 0.9999795681
B22: Kiegyenlítő, függő, átfutó bevételek | D22: -2664
A23: 10. | B23: Bevételek összesen | C23: 558013 | D23: 556347 | E23: =SUM(D23/C23) -> 0.9970144065
A26: Sorsz. | B26: Megnevezés | C26: 2011. évi módosított előirányzat | D26: 2011. évi teljesítés | E26: %
A28: K I A D Á S O K
A29: 1. | B29: Személyi juttatások | C29: 171821 | D29: 170330 | E29: =SUM(D29/C29) -> 0.9913223646
A30: 2. | B30: Munkaadókat terhelő járulékok | C30: 43559 | D30: 43105 | E30: 0.9895773549
A31: 3. | B31: Dologi kiadások | C31: 120922 | D31: 107923 | E31: 0.892500951
A32: 4. | B32: Támogatásértékű kiadások | C32: 6800 | D32: 5293 | E32: 0.7783823529
A33: 5. | B33: Társadalom- és szociálpolitikai kiadások | C33: 16240 | D33: 15219 | E33: 0.9371305419
A34: 6. | B34: Kölcsönök kiadásai | C34: 960 | D34: 957 | E34: 0.996875
A35: 7. | B35: Ellátottak pénzbeni juttatásai | C35: 705 | D35: 705 | E35: 1
A36: 8. | B36: Pénzeszközátadások | C36: 43335 | D36: 42442 | E36: 0.9793931003
A37: 9. | B37: Általános tartalék | C37: 33125
A38: 10. | B38: Céltartalék | C38: 5131
A39: 11. | B39: Kiegyenlítő, függő, átfutó kiadások | D39: -7482
B40: Kiadások összesen | C40: =SUM(C29:C39) -> 442598 | D40: =SUM(D29:D39) -> 378492 | E40: =SUM(D40/C40) -> 0.8551597612

Sheet 2b
A1: Megnevezés | B1: 2011. évi módosított előirányzat | C1: 2011. évi teljesítés | D1: %
A3: B E V É T E L E K
A4: Tárgyi eszközök, immateriális javak értékesítése | B4: 566 | C4: 566 | D4: =SUM(C4/B4) -> 1
A5: Önkormányzatok sajátos felhalm. és tőkebevételei | B5: 10663 | C5: 8953 | D5: =SUM(C5/B5) -> 0.8396323736
A6: Pénzügyi befektetések bevételei | B6: 1137 | C6: 1137 | D6: =SUM(C6/B6) -> 1
A7: Finanszírozási bevételek
A8: Felhalmozási célú támogatásértékű bevételek | B8: 72913 | C8: 72914 | D8: =SUM(C8/B8) -> 1.000013715
A9: Felhalm.célú pénzeszközátvétel államháztartáson kívülről | B9: 300 | C9: 300 | D9: =SUM(C9/B9) -> 1
A10: Céljellegű decentralizált támogatás
A11: Kölcsönök visszatérülése | B11: 140 | C11: 154 | D11: =SUM(C11/B11) -> 1.1
A12: Előző évi felhalmozási célú pénzmaradvány | B12: 43221 | C12: 43221 | D12: =SUM(C12/B12) -> 1
A13: Bevételek összesen | B13: =SUM(B4:B12) -> 128940 | C13: =SUM(C4:C12) -> 127245 | D13: =SUM(C13/B13) -> 0.9868543509
A16: Megnevezés | B16: 2011. évi módosított előirányzat | C16: 2011. évi teljesítés | D16: %
A18: K I A D Á S O K
A19: Beruházási kiadások | B19: 90439 | C19: 89822 | D19: =SUM(C19/B19) -> 0.993177722
A20: Felújítási kiadások | B20: 12300 | C20: 8656 | D20: =SUM(C20/B20) -> 0.7037398374
A21: Felhalmozási célú kölcsönök nyújtása | B21: 358 | C21: 358
A22: Felhalm.célú pénzeszközátadás államháztartáson kívülre | C22: 11
A23: Finanszírozási kiadások
A24: Felhalmozási célú tartalék | B24: 141258
A25: Felhalmozási célú év végi tervezett maradvány
A26: Kiadások összesen | B26: =SUM(B19:B25) -> 244355 | C26: =SUM(C19:C25) -> 98847 | D26: =SUM(C26/B26) -> 0.4045221092

Sheet 3a
B1: Bevételek megnevezése | C1: 2011. évi előirányzat | E1: Teljesítés | F1: % | L1: %
C2: eredeti | D2: módosított
A3: 1. | B3: I. MŰKÖDÉSI BEVÉTELEK | C3: =SUM(C4:C5) -> 283872 | D3: =SUM(D4:D5) -> 371372 | E3: =SUM(E4:E5) -> 372060 | L3: 1.002
A4: 2. | B4: 1.Int. működési bevételei összesen | C4: 17085 | D4: 49679 | E4: 51313 | L4: 1.033
A5: 3. | B5: 2.Sajátos működési bevételek összesen | C5: =SUM(C6:C13) -> 266787 | D5: =SUM(D6:D13) -> 321693 | E5: =SUM(E6:E13) -> 320747 | L5: 0.997
A6: 4. | B6: Iparűzési adó | C6: 210000 | D6: 261350 | E6: 261353 | L6: 1
A7: 5. | B7: Idegenforgalmi adó | C7: 8000 | D7: 11556 | E7: 11556 | L7: 1.001
A8: 6. | B8: SZJA helyben maradó része | C8: 43415 | D8: 43415 | E8: 43415 | L8: 1
A9: 7. | B9: SZJA jöv. Különbség mérséklése | C9: -73211 | D9: -73211 | E9: -73211 | L9: =SUM(E9/D9) -> 1
A10: 8. | B10: Gépjárműadó | C10: 35500 | D10: 35500 | E10: 35663 | L10: 1.001
A11: 9. | B11: Pótlékok, bírságok | C11: 1000 | D11: 1000 | E11: 1076 | L11: 1.076
A12: 10. | B12: Egyéb sajátos bevétel (földvédelmi járulék ) | C12: 30890 | D12: 30890 | E12: 30890 | L12: 1
A13: 11. | B13: Lakbér, bérbeadásból származó bevétel | C13: 11193 | D13: 11193 | E13: 10005 | L13: 89.4%
A14: 12. | B14: II. TÁMOGATÁSOK | C14: =SUM(C15:C18) -> 82636 | D14: =SUM(D15:D18) -> 126934 | E14: =SUM(E15:E18) -> 126934 | L14: =SUM(E14/D14) -> 1
A15: 13. | B15: Normatív támogatás | C15: 82138 | D15: 82041 | E15: 82041 | L15: =SUM(E15/D15) -> 1
A16: 14. | B16: Központosított támogatás | D16: 40099 | E16: 40099 | L16: =SUM(E16/D16) -> 1
A17: 15. | B17: Normatív kötött felhasználású támogatás | C17: 498 | D17: 3206 | E17: 3206 | L17: =SUM(E17/D17) -> 1
A18: 16. | B18: Egyéb központi támogatás | D18: 1588 | E18: 1588 | L18: =SUM(E18/D18) -> 1
A19: 17. | B19: III. FELHALMOZÁSI ÉS TŐKEBEVÉTELEK | C19: =SUM(C20:C24) -> 24 | D19: =SUM(D20:D24) -> 12366 | E19: =SUM(E20:E24) -> 10656 | L19: 1.005
A20: 18. | B20: Házingatlan értékesítés | C20: 24 | D20: 89 | E20: 89 | L20: 1
A21: 19. | B21: Vagyonkezelésbe adásból sz. bevétel | D21: 3734 | E21: 3734 | L21: 1
B22: Tárgyi eszköz értékesítése | D22: 566 | E22: 566 | L22: 1
A23: 20. | B23: Sajátos felhalm. és tőkebev. (bérleti díj) | D23: 6840 | E23: 5130 | L23: 0.75
A24: 21. | B24: Osztalék-, és hozambevételek | D24: 1137 | E24: 1137 | L24: =SUM(E24/D24) -> 1
A25: 22. | B25: IV.TÁMOGATÁSÉRTÉKŰ BEVÉTELEK | C25: 85846 | D25: 82997 | E25: =SUM(E26,E33:E34,) -> 83299 | L25: 100.4%
A26: 23. | B26: Működési célú támogatásértékű bevételek | C26: =SUM(C27:C32) -> 7615 | D26: =SUM(D27:D32) -> 9940 | E26: =SUM(E27:E32) -> 10241 | L26: 1.03
A27: 24. | B27: OEP-től átvett pénzeszköz | C27: 3600 | D27: 3600 | E27: 3663 | L27: 101.8%
A28: 25. | B28: Kistérségi normatíva | C28: 300 | D28: 440 | E28: 449 | L28: 1.13
A29: 26. | B29: Központi költségvetési szervtől átvett p.e. | C29: 566 | D29: 2254 | E29: 2128 | L29: 94.4%
B30: Támogatásért. Bev. Önkormányzattól | E30: 356
B31: Elkülönített áll. Pénzalapoktól átvétel | D31: 897 | E31: 897 | L31: 1
A32: 27. | B32: Könyvtár TÁMOP pályázat | C32: 3149 | D32: 2749 | E32: 2748 | L32: 1
A33: 28. | B33: Előző évi támogatás központi kvi szervtől | D33: 144 | E33: 144 | F33: 185 | L33: 1
A34: 29. | B34: Felhalmozási célú támogatásértékű bevételek | C34: 78231 | D34: 72913 | E34: 72914 | L34: =SUM(E34/D34) -> 1.000013715
A35: 30. | B35: KMOP pályázat | C35: 78231 | D35: 72913 | E35: 72913 | L35: =SUM(E35/D35) -> 1
A36: 31. | B36: V. ÁTVETT PÉNZESZKÖZÖK | D36: =SUM(D37:D38) -> 300 | E36: =SUM(E37:E38) -> 303 | L36: 1.01
A37: 32. | B37: Működési célú átvett pénzeszközök | E37: 3
A38: 33. | B38: Felhalmozási célra átvett pénzeszköz | D38: 300 | E38: 300 | L38: =SUM(E38/D38) -> 1
A39: 34. | B39: VI. KÖLCSÖNÖK VISSZATÉR., FIN.MŰVELETEK | C39: 400 | D39: =SUM(D40:D42) -> 820 | E39: =SUM(E40:E42) -> 841 | L39: 1.137
A40: 35. | B40: Kölcsönök visszatérülése | C40: 400 | D40: 820 | E40: 841 | L40: 102.6%
A41: 36. | B41: Értékpapír értékesítése
A42: 37. | B42: Részesedések értékesítése
A43: 38. | B43: PÉNZFORGALMI BEVÉTELEK ÖSSZESEN | C43: =SUM(C3,C14,C19,C25,C36,C39,) -> 452778 | D43: =SUM(D3,D14,D19,D25,D36,D39,) -> 594789 | E43: =SUM(E3,E14,E19,E25,E36,E39,) -> 594093 | F43: =SUM(F10,F16,F20,F25,F38,) -> 0 | L43: 99.9%
A44: 39. | B44: VII. PÉNZFORGALOM NÉLKÜLI BEVÉTELEK | C44: 77000 | D44: 92164 | E44: 92163 | L44: 1
A45: 40. | B45: Előző évi pénzmaradvány | C45: 77000 | D45: 92164 | E45: 92163 | L45: 1
A46: 41. | B46: Kiegyenlítő, függő, átfutó bevételek | E46: -2664
A47: 42. | B47: BEVÉTELEK MINDÖSSZESEN | C47: =SUM(C3,C14,C19,C25,C36,C39,C44,) -> 529778 | D47: =SUM(D3,D14,D19,D25,D36,D39,D44,) -> 686953 | E47: 683592 | L47: 0.995

Sheet 3b
A1: Kiadások megnevezése | B1: 2011. évi előirányzat | D1: Teljesítés | E1: %
B2: eredeti | C2: módosított
A3: Működési kiadások | B3: =SUM(B5:B7) -> 316619 | C3: =SUM(C5:C6,C7,) -> 336302 | D3: =SUM(D5:D7) -> 321358 | E3: =SUM(D3/C3) -> 0.9555637492
A4: Ebből:
A5: Személyi juttatások | B5: 168394 | C5: 171821 | D5: 170330 | E5: =SUM(D5/C5) -> 0.9913223646
A6: Munkaadói járulék | B6: 42914 | C6: 43559 | D6: 43105 | E6: =SUM(D6/C6) -> 0.9895773549
A7: Dologi kiadások | B7: 105311 | C7: 120922 | D7: 107923 | E7: =SUM(D7/C7) -> 0.892500951
A8: NKÖH (összes működési kiadásból) | B8: 566 | C8: 609 | D8: 501 | E8: =SUM(D8/C8) -> 0.8226600985
A10: Támogatásértékű kiadások | B10: 6800 | C10: 6800 | D10: 5293 | E10: =SUM(D10/C10) -> 0.7783823529
A12: Szociális kölcsön | B12: 500 | C12: 1318 | D12: 1315 | E12: =SUM(D12/C12) -> 0.997723824
A14: Társadalom- és szoc.politikai juttatások | B14: 11625 | C14: 16240 | D14: 15219 | E14: =SUM(D14/C14) -> 0.9371305419
A16: Ellátottak pénzbeni juttatásai | B16: 600 | C16: 705 | D16: 705 | E16: =SUM(D16/C16) -> 1
A18: Államháztartáson kívüli pénzeszközátadás | B18: 2732 | C18: 43335 | D18: 42442 | E18: =SUM(D18/C18) -> 0.9793931003
A20: Felhalmozási kiadások | B20: 87796 | C20: 90439 | D20: 89822 | E20: =SUM(D20/C20) -> 0.993177722
A22: Felújítási kiadások | C22: 12300 | D22: 8656 | E22: =SUM(D22/C22) -> 0.7037398374
A24: Felhalmozási célú pénzeszközátadás | D24: 11
A26: Függő, átfutó, kiegyenlítő kiadások | D26: -7482
A28: Tartalékok: | B28: =SUM(B29:B30,B35,) -> 103106 | C28: =SUM(C29:C30,C35,) -> 179514
A29: általános | B29: 9995 | C29: 33125
A30: céltartalék: | B30: =SUM(B31:B34) -> 50911 | C30: =SUM(C31:C33) -> 54128
A31: környezetvédelmi alap | B31: 7600 | C31: 5131
A32: vízügyi alap | B32: 43221 | C32: 48997
A33: Iskola informatikai pályázat | B33: 90
A35: felhalmozási tartalék | B35: 42200 | C35: 92261
A37: Kiadások mindösszesen | B37: =SUM(B3,B10:B24,B28,) -> 529778 | C37: =SUM(C3,C10:C28,) -> 686953 | D37: =SUM(D3,D10:D26,) -> 477339 | E37: =SUM(D37/C37) -> 0.6948641319

Sheet 4.
A1: Szakfeladat megnevezése | B1: Kiadások | F1: Ebből szem.jutt.
B2: eredeti ei. | C2: mód. ei. | D2: teljesítés | E2: % | F2: eredeti ei. | G2: mód. ei. | H2: teljesítés | I2: %
A3: 1. cím: Önkorm. Igazgatási Feladatok | B3: =SUM(B4:B22) -> 133029 | C3: =SUM(C4:C22) -> 143747 | D3: =SUM(D4:D22) -> 131737 | E3: =SUM(D3/C3) -> 0.9164504303 | F3: =SUM(F4:F22) -> 67667 | G3: =SUM(G4:G22) -> 66951 | H3: =SUM(H4:H22) -> 64049 | I3: =SUM(H3/G3) -> 0.956654867
A4: Lakóingatlan bérbeadása, üzemelt. | B4: 2699 | C4: 2822 | D4: 2126 | E4: =SUM(D4/C4) -> 0.7533664068 | F4: 1860 | G4: 1888 | H4: 1606 | I4: =SUM(H4/G4) -> 0.8506355932
A5: Nem lakóingatlan bérbeadása, üzemelt.
A6: Önkormányzatok és többc.t.ig.tev. | B6: 73355 | C6: 71000 | D6: 66260 | E6: =SUM(D6/C6) -> 0.9332394366 | F6: 41428 | G6: 31481 | H6: 31096 | I6: =SUM(H6/G6) -> 0.9877704012
A7: Önkorm.és többc.t.ig.tev. pénzügyi igazg.
A8: Adó, illeték kiszabása, beszedése, adóellenőrzés | C8: 3853 | D8: 3853 | E8: 1 | G8: 3068 | H8: 3068
A9: Önkormányzati jogalkotás | B9: 9356 | C9: 10116 | D9: 10477 | E9: =SUM(D9/C9) -> 1.035686042 | F9: 7200 | G9: 7960 | H9: 8283 | I9: =SUM(H9/G9) -> 1.040577889
A10: Önkorm.Közbesz. Eljár. Lebony. | B10: 375 | C10: 375 | E10: =SUM(D10/C10) -> 0
A11: Települési Kisebbségi Önkormányzat | B11: 566 | C11: 609 | D11: 501 | E11: =SUM(D11/C11) -> 0.8226600985 | F11: 100 | G11: 109 | H11: 108 | I11: =SUM(H11/G11) -> 0.9908256881
A12: Város-és Községgazdálkodás | B12: 12153 | C12: 15730 | D12: 13579 | E12: =SUM(D12/C12) -> 0.8632549269 | F12: 3438 | G12: 5212 | H12: 4619 | I12: =SUM(H12/G12) -> 0.8862240982
A13: Intézményüzemeltetés | B13: 12213 | C13: 12565 | D13: 12372 | E13: =SUM(D13/C13) -> 0.9846398727 | F13: 5126 | G13: 5184 | H13: 4191 | I13: 0.808
A14: Zöldterület-kezelés | B14: 11894 | C14: 13771 | D14: 10062 | E14: =SUM(D14/C14) -> 0.7306658921 | F14: 4639 | G14: 6278 | H14: 5631 | I14: =SUM(H14/G14) -> 0.8969417012
A15: Közvilágítás | B15: 5250 | C15: 5250 | D15: 4782 | E15: 0.9108571429
A16: Települési hulladékkezelés | D16: 587
A17: Közterület rendjének fenntartása | B17: 4516 | C17: 4630 | D17: 4580 | E17: 0.9892008639 | F17: 3413 | G17: 3503 | H17: 3413 | I17: =SUM(H17/G17) -> 0.9743077362
A18: Közcélú foglalkoztatás | B18: 652 | C18: 1147 | D18: 824 | E18: 0.7183958152 | F18: 463 | G18: 852 | H18: 735 | I18: =SUM(H18/G18) -> 0.8626760563
A19: Rövid távú közfoglalkoztatás | C19: 756 | D19: 611 | E19: 0.8082010582 | G19: 624 | H19: 507 | I19: =SUM(H19/G19) -> 0.8125
A20: Népszámlálás | C20: 1102 | D20: 1102 | E20: 1 | G20: 777 | H20: 777 | I20: =SUM(H20/G20) -> 1
A21: Kisebbségi önkormányzati képviselővál. | C21: 21 | D21: 21 | E21: 1 | G21: 15 | H21: 15 | I21: =SUM(H21/G21) -> 1
A23: 2. cím: Oktatási, kulturális, sportfeladatok | B23: =SUM(B24:B36) -> 177577 | C23: =SUM(C24:C36) -> 186716 | D23: =SUM(D24:D36) -> 184343 | E23: =SUM(D23/C23) -> 0.9872908588 | F23: =SUM(F24:F36) -> 97687 | G23: =SUM(G24:G36) -> 101830 | H23: =SUM(H24:H36) -> 103344 | I23: =SUM(H23/G23) -> 1.014867917
A24: Iskolai intézményi étkeztetés | B24: 10000 | C24: 10475 | D24: 10479 | E24: =SUM(D24/C24) -> 1.000381862
A25: Óvodai intézményi étkeztetés | B25: 11000 | C25: 11644 | D25: 11644 | E25: 1
A26: Óvodai nevelés | B26: 48836 | C26: 49641 | D26: 47386 | E26: 0.9545738402 | F26: 36281 | G26: 36519 | H26: 34678 | I26: =SUM(H26/G26) -> 0.9495878858
A27: Általános iskolai oktatás 1-4. évfolyam | B27: 35501 | C27: 37953 | D27: 30440 | E27: 0.8020446342 | F27: 25171 | G27: 27064 | H27: 21228 | I27: 0.7843629914
A28: Általános iskolai oktatás 5-8. évfolyam | B28: 32439 | C28: 34717 | D28: 43974 | E28: 1.266641703 | F28: 23339 | G28: 24974 | H28: 32032 | I28: 1.282613918
A29: Ált. isk. napközi és tanulószoba | B29: 2570 | C29: 2570 | D29: 1980 | E29: 0.7704280156 | F29: 2044 | G29: 2044 | H29: 1568 | I29: 0.7671232877
A30: Épitményüzemeltetés | B30: 22402 | C30: 24075 | D30: 25041 | E30: 1.040124611 | F30: 4899 | G30: 4910 | H30: 7122 | I30: 1.450509165
A31: Közművelődési intézmények, köz.színt. | B31: 6130 | C31: 6712 | D31: 5364 | E31: =SUM(D31/C31) -> 0.7991656734 | F31: 3259 | G31: 3625 | H31: 3758 | I31: 1.036689655
A32: Nemzeti ünnepek programjai | B32: 638 | C32: 638 | D32: 369 | E32: 0.578369906
A33: Kiemelt állami és önkorm. rend. | B33: 3375 | C33: 3525 | D33: 3458 | E33: 0.9809929078
A34: Sportlétesítmények működtetése és fejl. | B34: 156 | C34: 156 | E34: 0
A35: Könyvtári szolgáltatások | B35: 4430 | C35: 4430 | D35: 4000 | E35: 0.9029345372 | F35: 2694 | G35: 2694 | H35: 2958 | I35: =SUM(H35/G35) -> 1.097995546
A36: Könyvtári állomány gyarap., nyilv.tart. | B36: 100 | C36: 180 | D36: 208 | E36: 1.155555556
A40: 3. cím: Egészségügyi ellátás | B40: =SUM(B41:B46) -> 6013 | C40: =SUM(C41:C46) -> 5839 | D40: =SUM(D41:D46) -> 5278 | E40: =SUM(D40/C40) -> 0.9039219044 | F40: =SUM(F41:F46) -> 3040 | G40: =SUM(G41:G46) -> 3040 | H40: =SUM(H41:H46) -> 2937 | I40: =SUM(H40/G40) -> 0.9661184211
A41: Háziorvosi alapellátás | B41: 637 | C41: 363 | D41: 6 | E41: =SUM(D41/C41) -> 0.01652892562
A42: Ifjúság-egészségügyi gondozás | B42: 146 | C42: 146 | D42: 114 | E42: =SUM(D42/C42) -> 0.7808219178
A43: Család- és nővéd. Eü. gondozás | B43: 4485 | C43: 4485 | D43: 4347 | E43: =SUM(D43/C43) -> 0.9692307692 | F43: 3040 | G43: 3040 | H43: 2937 | I43: =SUM(H43/G43) -> 0.9661184211
A44: Fogorvosi alapellátás | B44: 50 | C44: 50
A45: Rendszeres pénzbeni ellátások járulékai | B45: 575 | C45: 675 | D45: 691 | E45: =SUM(D45/C45) -> 1.023703704
A46: Egyéb, máshová nem sorolt járóbeteg-ell. | B46: 120 | C46: 120 | D46: 120 | E46: =SUM(D46/C46) -> 1
A47: Személyi juttatás, járulékai, dologi kiadás összesen | B47: =SUM(B3,B23,B38,B40,) -> 316619 | C47: =SUM(C3,C23,C38,C40,) -> 336302 | D47: =SUM(D3,D23,D38,D40,) -> 321358 | E47: =SUM(D47/C47) -> 0.9555637492 | F47: =SUM(F3,F23,F38,F40,) -> 168394 | G47: =SUM(G3,G23,G38,G40,) -> 171821 | H47: =SUM(H3,H23,H38,H40,) -> 170330 | I47: =SUM(H47/G47) -> 0.9913223646
A49: 4. cím: Szoc. Jutt., ellátások, pénzbeli jutt. | B49: 12725 | C49: 18263 | D49: 17239 | E49: =SUM(D49/C49) -> 0.943930351
A51: 5. cím: Támogatásértékű kiadások, átadott pénzeszközök | B51: 9532 | C51: 50135 | D51: 47735 | E51: =SUM(D51/C51) -> 0.952129251
A52: Kiadások mindösszesen | B52: =SUM(B47,B49,B51,) -> 338876 | C52: =SUM(C47,C49,C51,) -> 404700 | D52: =SUM(D47,D49,D51,) -> 386332 | E52: =SUM(D52/C52) -> 0.9546132938 | F52: =SUM(F47,F49,F51,) -> 168394 | G52: =SUM(G47,G49,G51,) -> 171821 | H52: =SUM(H47,H49,H51,) -> 170330 | I52: =SUM(H52/G52) -> 0.9913223646

Sheet 5.
A1: Feladat megnevezése | B1: Előirányzat | D1: Teljesítés | E1: %
B2: eredeti | C2: módosított
A3: Felhalmozási kiadások:
A4: Óvodabővítés (pályázat, szállítói finanszírozás ) | B4: 86958 | C4: 86958 | D4: 86958 | E4: =SUM(D4/C4) -> 1
A5: Egészségügy eszközbeszerzés (bérleti díj terhére ) | B5: 400 | C5: 400
A6: Patak utca tervezési költség | B6: 438 | C6: 726
A7: KONICA multifunkciós eszköz | C7: 132 | D7: 132 | E7: =SUM(D7/C7) -> 1
A8: Fűkasza | C8: 217 | D8: 217 | E8: 1
A9: KEK mágnesfal (pénzmaradvány terhére ) | C9: 656 | D9: 656 | E9: 1
A10: Klíma (szerverszoba ) | C10: 196 | D10: 196 | E10: 1
A11: KEK notebook,munkaállomás, projektor | C11: 230 | D11: 739 | E11: 3.213043478
A12: községrendezés kandeláber | C12: 293 | D12: 293 | E12: 1
A13: Laptop beszerzés | C13: 139 | D13: 139 | E13: 1
A14: Sószóró beszerzése | C14: 360 | D14: 360 | E14: 1
A15: óvoda mosogatógép | C15: 132 | D15: 132 | E15: 1
A25: Felhalmozási kiadások összesen: | B25: =SUM(B4:B23) -> 87796 | C25: =SUM(C4:C24) -> 90439 | D25: =SUM(D4:D24) -> 89822 | E25: =SUM(D25/C25) -> 0.993177722
A27: Felújítási kiadások:
A28: Rózsa köz tervek és felújítás | C28: 3750 | D28: 3668 | E28: =SUM(D28/C28) -> 0.9781333333
A29: Víziközmű-vagyon felújítása | C29: 8550 | D29: 4988 | E29: =SUM(D29/C29) -> 0.5833918129
A33: Felújítási kiadások összesen: | B33: =SUM(B28:B31) -> 0 | C33: =SUM(C28:C31) -> 12300 | D33: =SUM(D28:D31) -> 8656 | E33: =SUM(D33/C33) -> 0.7037398374
A36: Felhalmozási tartalék | B36: 42200 | C36: 92261
A38: Vízügyi alap tartalék | B38: 43221 | C38: 48997
A40: Felhalmozás, felújítás, pénzeszköz átadás mindösszesen | B40: =SUM(B25,B33,B36:B38,) -> 173217 | C40: 243997 | D40: =SUM(D25,D33,) -> 98478 | E40: =SUM(D40/C40) -> 0.403603323

Sheet 6.
A1: B e v é t e l e k megnevezése | B1: E l ő i r á n y z a t | D1: Teljesítés | E1: %
B2: eredeti | C2: módosított
A3: Központi költségvetéstől átvett pénzeszköz | B3: 210 | C3: 210 | D3: 210 | E3: =SUM(D3/C3) -> 1
A4: Önkormányzati támogatás | B4: 356 | C4: 356 | D4: 356 | E4: 1
A5: Feladatalapú támogatás | C5: 43 | D5: 43 | E5: 1
A6: B e v é t e l e k ö s s z e s e n | B6: =SUM(B3:B5) -> 566 | C6: =SUM(C3:C5) -> 609 | D6: =SUM(D3:D5) -> 609 | E6: 1
A11: K i a d á s o k megnevezése
A13: Működési kiadások: | B13: =SUM(B14:B17) -> 566 | C13: =SUM(C14:C17) -> 609 | D13: =SUM(D14:D17) -> 501 | E13: =SUM(D13/C13) -> 0.8226600985
A14: Személyi juttatás | B14: 100 | C14: 109 | D14: 109 | E14: =SUM(D14/C14) -> 1
A15: TB járulék | B15: 27 | C15: 27 | D15: 26 | E15: =SUM(D15/C15) -> 0.962962963
A16: Dologi kiadás | B16: 439 | C16: 473 | D16: 366 | E16: =SUM(D16/C16) -> 0.7737843552
A17: Működési célra átadott pénzeszköz
A18: Kiegyenlítő, függő, átfutó kiadás ( Vitovszkiné XII. h. bér ) | D18: 33
A22: K i a d á s o k ö s s z e s e n | B22: =SUM(B13,B19,) -> 566 | C22: =SUM(C13,C19,) -> 609 | D22: 534 | E22: 0.823
A26: Kiadások és bevételek egyenlege 2011. december 31-én: 75 e Ft.

Sheet 7.
A1: Pénzforgalom egyeztetése (e Ft-ban)
A4: Költségvetési bankszámlák egyenlege tárgyidőszak elején: | G4: 85101
A5: Pénztár és betétkönyvek tárgyidőszak elején: | G5: 222
A8: Pénzkészlet a tárgyidőszak elején összesen: | G8: 85323
A11: Teljesített bevételek: | G11: 591429
A12: Teljesített kiadások: | G12: 477339
A15: Költségvetési bankszámlák egyenlege tárgyidőszak végén: | G15: 199207
A16: Pénztár és betétkönyvek tárgyidőszak végén: | G16: 206
A19: Pénzkészlet a tárgyidőszak végén összesen: | G19: 199413

Sheet 8.
A1: Sorsz. | C1: Előző év | D1: Tárgyév
A3: 1 | B3: Költségvetési bankszámlák záró egyenlegei | C3: 85101 | D3: 199207
A4: 2 | B4: Pénztárak és betétkönyvek záró egyenlegei | C4: 222 | D4: 206
A5: 3 | B5: Záró pénzkészlet | C5: 85323 | D5: 199413
A6: 4 | B6: költségvetési aktív függő elszámolások záróegyenlege | C6: 7556 | D6: 265
A7: 5 | B7: Költségvetési aktív átfutó elszámolások záró egyenlegei | C7: 2735 | D7: 2544
A8: 6 | B8: Költségvetési aktív kiegyenlitő elszámolások záróegyenlege
A9: 7 | B9: Költségvetési aktív elszámolások záróegyenlege | C9: 10291 | D9: 2809
A10: 8 | B10: Költségvetési passzív függő elszámolások záróegyenlege | C10: 3261 | D10: 600
A11: 9 | B11: Kölségvetési passzív kiegyenlítő elszámolások záróegyenlege
A12: 10 | B12: Költségvetési aktív átfutó elszámolások záróegyenlege | C12: 4 | D12: 1
A13: 11 | B13: Költségvetési passzív elszámolások záróegyenlege | C13: 3265 | D13: 601
A14: 12 | B14: Egyéb aktív és passzív pénzügyi elszámolásokm záróegyenlege | C14: 7026 | D14: 2208
A15: 13 | B15: Előző években képzett költségvetési tartalék maradványa ( - ) | C15: 185 | D15: 329
A16: 14 | B16: Tárgyévi helyesbített pénzmaradvány | C16: 92164 | D16: 201292
A17: 15 | B17: Intézményi költségvetési befiz. többlettámogatás miatt
A18: 16 | B18: Költségvetési befizetés többlettámogatás miatt | C18: -3408
A19: 17 | B19: Költségvetési kiutalás kiutalatlan intézményi tám. miatt
A20: 18 | B20: Költségvetési kiutalás kiutalatlan támogatás miatt | D20: 703
A21: 19 | B21: Költségvetési pénzmaradvány | C21: 88756 | D21: 201995
A22: 20 | B22: Váll. Tev.-ből eredményéből alaptev.ellátására felhasznált összeg
A23: 21 | B23: Kvi pénzmradvány külön jogszabály alapján mód. Tétel
A24: 22 | B24: Módosított pénzmaradvány | C24: 88756 | D24: 201995
A25: 22 | B25: 19. sorból-Egészségbizt. Alapból befolyt pénzmaradány
B26: 19. sorból-Kötelezettséggel terhelt pénzmaradvány | C26: 350 | D26: 1850
B27: Működési célú kötelezettséggel terhelt pénzmaradvány | C27: 350
A28: 23 | B28: Felhalmozás célú kötelezettséggel terhelt pénzmaradvány | D28: 1850
A29: 24 | B29: Szabad pénzmaradvány | C29: 88406 | D29: 200145
B30: Ebből: müködési célú szabad pénzmaradvány | C30: 45185 | D30: 50145
B31: felhalmozási célú szabad pénzmaradvány | C31: 43221 | D31: 150000

Sheet 9a.
A1: Bevételek megnevezése | B1: Előirányzat | D1: Teljesítés | E1: %
B2: eredeti | C2: módosított
A3: I. MŰKÖDÉSI BEVÉTELEK | B3: =SUM(B4:B5) -> 283561 | C3: =SUM(C4,C5,) -> 371061 | D3: =SUM(D4,D5,) -> 371710 | E3: 100.2%
A4: 1. Intézményi működési bevételek | B4: 16774 | C4: 49368 | D4: 50963 | E4: 1.032
A5: 2. Sajátos működési bevételek | B5: =SUM(B6:B13) -> 266787 | C5: =SUM(C6:C13) -> 321693 | D5: =SUM(D6:D13) -> 320747 | E5: 0.997
A6: Iparűzési adó | B6: 210000 | C6: 261350 | D6: 261353 | E6: 1
A7: Idegenforgalmi adó | B7: 8000 | C7: 11556 | D7: 11556 | E7: 1
A8: SZJA helyben maradó része | B8: 43415 | C8: 43415 | D8: 43415 | E8: 1
A9: SZJA jövedelemkülönbség mérséklése | B9: -73211 | C9: -73211 | D9: -73211 | E9: 1
A10: Gépjárműadó | B10: 35500 | C10: 35500 | D10: 35663 | E10: 1.005
A11: Pótlékok, bírságok | B11: 1000 | C11: 1000 | D11: 1076 | E11: 1.076
A12: Egyéb sajátos bevétel ( földvédelmi járulék ) | B12: 30890 | C12: 30890 | D12: 30890 | E12: 1
A13: Bérleti díj, lakbér | B13: 11193 | C13: 11193 | D13: 10005 | E13: 0.894
A14: II. TÁMOGATÁSOK | B14: =SUM(B15:B18) -> 82636 | C14: =SUM(C15:C18) -> 126934 | D14: =SUM(D15:D18) -> 126934 | E14: 1
A15: Normatív támogatás | B15: 82138 | C15: 82041 | D15: 82041 | E15: 1
A16: Központosított támogatás | C16: 40099 | D16: 40099 | E16: 1
A17: Egyéb Központi támogatás | C17: 1588 | D17: 1588 | E17: 1
A18: Normatív kötött felhasználású támogatás | B18: 498 | C18: 3206 | D18: 3206 | E18: 1
A19: III. SAJÁTOS FELHALMOZÁSI ÉS TŐKEBEVÉTELEK | B19: =SUM(B20:B23) -> 24 | C19: =SUM(C20:C23) -> 12366 | D19: =SUM(D20:D23) -> 10656 | E19: 0.862
A20: Házingatlan értékesítése | B20: 24 | C20: 89 | D20: 89 | E20: 1
A21: Tárgyi eszköz értékesítés | C21: 566 | D21: 566 | E21: 1
A22: Osztalék és hozam | C22: 1137 | D22: 1137 | E22: 1
A23: Bérbeadásból származó bevétel | C23: 10574 | D23: 8864 | E23: 0.838
A24: IV. TÁMOGATÁSÉRTÉKŰ BEVÉTELEK | B24: 85846 | C24: 82997 | D24: 83299 | E24: 1.004
A25: Működési célú támogatásértékű bevételek | B25: =SUM(B26:B30) -> 7615 | C25: =SUM(C26:C30) -> 9940 | D25: =SUM(D26:D30) -> 9885 | E25: 1.03
A26: OEP-től átvett pénzeszköz | B26: 3600 | C26: 3600 | D26: 3663 | E26: 1.018
A27: Kistérségi normatíva | B27: 300 | C27: 440 | D27: 449 | E27: 1.02
A28: Központi költségvetési szervtől átvett pénzeszközök | B28: 566 | C28: 2254 | D28: 2128 | E28: 0.944
A29: Elkülönített pénzalapoktól átvétel | C29: 897 | D29: 897 | E29: 1
A30: Könyvtár TÁMOP pályázat | B30: 3149 | C30: 2749 | D30: 2748 | E30: 1
A31: Előző évi támogatás központi kvi szervtől | C31: 144 | D31: 144 | E31: 1
A32: Felhalmozási célú támogatásértékű bevételek | B32: 78231 | C32: 72913 | D32: 72914 | E32: 1
A33: KMOP pályázat (óvodabővítés) | C33: 72913 | D33: 72914 | E33: 1
A34: V. ÁTVETT PÉNZESZKÖZÖK | C34: 300 | D34: 300 | E34: 1
A35: VI. KÖLCSÖNÖK VISSZATÉRÜLÉSE ÉS FINANSZÍROZÁSI MŰVELETEK | B35: =SUM(B36:B37) -> 400 | C35: =SUM(C36:C37) -> 820 | D35: =SUM(D36:D37) -> 841
A36: Kölcsönök visszatérülése | B36: 400 | C36: 820 | D36: 841 | E36: 1.026
A37: Értékpapír értékesítése
A38: VII. PÉNZFORGALOM NÉLKÜLI BEVÉTELEK | B38: =SUM(B39,) -> 77000 | C38: =SUM(C39:C40) -> 92164 | D38: =SUM(D39,) -> 92163 | E38: 1
A39: Előző évi pénzmaradvány | B39: 77000 | C39: 92164 | D39: 92163 | E39: 1
A40: Kiegyenlítő, függő, átfutó bevételek | D40: -2664
A42: BEVÉTELEK MINDÖSSZESEN | B42: =SUM(B3,B14,B19,B24,B35,B38,) -> 529467 | C42: =SUM(C3,C14,C19,C24,C34,C35,C38,) -> 686642 | D42: =SUM(D3,D14,D19,D24,D34,D35,D38,D40,) -> 683239 | E42: 99.5%

Sheet 9b.
A1: Szakfeladat megnevezése | B1: Személyi juttatások | E1: Járulékok | H1: Dologi kiadások | K1: Kiadások összesen
B2: Eredeti ei. | C2: Módosított ei. | D2: Teljesítés | E2: Eredeti ei. | F2: Módosított ei. | G2: Teljesítés | H2: Eredeti ei. | I2: Módosított ei. | J2: Teljesítés
A3: Önkorm. Igazgatási tevékenysége | B3: 41428 | C3: 31481 | D3: 31096 | E3: 10326 | F3: 7979 | G3: 7928 | H3: 21601 | I3: 31540 | J3: 27236 | K3: =SUM(D3,G3,J3,) -> 66260
A4: Saját vagy bérelt ingatlan hasznosítása | B4: 1860 | C4: 1888 | D4: 1606 | E4: 476 | F4: 483 | G4: 396 | H4: 363 | I4: 451 | J4: 124 | K4: 2126
A5: Adó, illeték kiszabása, beszedése, adóellenőrzés | C5: 3068 | D5: 3068 | F5: 785 | G5: 785 | K5: =SUM(D5+G5+J5) -> 3853
A6: Önkormányzati jogalkotás | B6: 7200 | C6: 7960 | D6: 8283 | E6: 1994 | F6: 1994 | G6: 2035 | H6: 162 | I6: 162 | J6: 159 | K6: =SUM(D6+G6+J6) -> 10477
A7: Önkorm.Közbesz. Eljár. Lebony. | H7: 375 | I7: 375 | K7: =SUM(J7) -> 0
A8: Települési Kisebbségi Önkormányzat | B8: 100 | C8: 109 | D8: 108 | E8: 27 | F8: 27 | G8: 26 | H8: 439 | I8: 473 | J8: 367 | K8: 501
A9: Város-és Községgazdálkodás | B9: 3438 | C9: 5212 | D9: 4619 | E9: 845 | F9: 1180 | G9: 1206 | H9: 7870 | I9: 9338 | J9: 7754 | K9: 13579
A10: Zöldterület-kezelés | B10: 4639 | C10: 6278 | D10: 5631 | E10: 1141 | F10: 1379 | G10: 1374 | H10: 6114 | I10: 6114 | J10: 3057 | K10: 10062
A11: Közvilágítás | H11: 5250 | I11: 5250 | J11: 4782 | K11: =SUM(J11) -> 4782
A12: Települési hulladékkezelés | J12: 587 | K12: =SUM(J12) -> 587
A13: Közterület rendjének fenntartása | B13: 3413 | C13: 3503 | D13: 3413 | E13: 838 | F13: 862 | G13: 884 | H13: 265 | I13: 265 | J13: 283 | K13: =SUM(D13,G13,J13,) -> 4580
A14: Közcélú foglalkoztatás | B14: 463 | C14: 852 | D14: 507 | E14: 125 | F14: 231 | G14: 82 | H14: 64 | I14: 64 | J14: 22 | K14: =SUM(D14+G14+J14) -> 611
A15: Építményüzemeltetés | B15: 5126 | C15: 5159 | D15: 4191 | E15: 1317 | F15: 1623 | G15: 1311 | H15: 5770 | I15: 6548 | J15: 6870 | K15: =SUM(D15+G15+J15) -> 12372
A16: Népszámlálás | C16: 777 | D16: 777 | F16: 193 | G16: 193 | I16: 132 | J16: 132 | K16: =SUM(D16,G16,J16,) -> 1102
A17: Rövid távú közfoglakoztatás | C17: 624 | D17: 735 | F17: 132 | G17: 76 | J17: 13 | K17: =SUM(D17,G17,J17,) -> 824
A18: Kisebbségi önkormányzati képviselővál. | C18: 15 | D18: 15 | F18: 4 | G18: 4 | I18: 2 | J18: 2 | K18: =SUM(D18+G18+J18) -> 21
A19: Iskolai intézményi étkeztetés | H19: 10000 | I19: 10475 | J19: 10479 | K19: =SUM(J19) -> 10479
A20: Óvodai intézményi étkeztetés | H20: 11000 | I20: 11644 | J20: 11644 | K20: =SUM(J20) -> 11644
A21: Közművelődési intézmények, köz.színt. | B21: 3259 | C21: 3625 | D21: 3758 | E21: 807 | F21: 898 | G21: 895 | H21: 2064 | I21: 2189 | J21: 711 | K21: =SUM(D21+G21+J21) -> 5364
A22: Nemzeti ünnepek programjai | H22: 638 | I22: 638 | J22: 369 | K22: =SUM(J22) -> 369
A23: Kiemelt állami és önkorm. rend. | H23: 3375 | I23: 3525 | J23: 3458 | K23: =SUM(J23) -> 3458
A24: Sportlétesítmények működtetése és fejl. | H24: 156 | I24: 156 | K24: =SUM(J24) -> 0
A25: Háziorvosi alapellátás | H25: 637 | I25: 363 | J25: 6 | K25: =SUM(J25) -> 6
A26: Ifjúság-egészségügyi gondozás | H26: 146 | I26: 146 | J26: 114 | K26: =SUM(J26) -> 114
A27: Család- és nővéd. Eü. gondozás | B27: 3040 | C27: 3040 | D27: 2937 | E27: 761 | F27: 761 | G27: 730 | H27: 684 | I27: 684 | J27: 680 | K27: =SUM(D27+G27+J27) -> 4347
A28: Fogorvosi alapellátás | H28: 50 | I28: 50
A29: Rendszeres pénzbeni ellátások járulékai | E29: 575 | F29: 675 | G29: 691 | K29: =SUM(G29) -> 691
A30: Egyéb, máshová nem sorolt járóbeteg-ell. | H30: 120 | I30: 120 | J30: 120 | K30: =SUM(J30) -> 120
A31: Kiadások mindösszesen | B31: =SUM(B3:B30) -> 73966 | C31: =SUM(C3:C30) -> 73591 | D31: =SUM(D3:D28) -> 70744 | E31: =SUM(E3:E30) -> 19232 | F31: =SUM(F3:F29) -> 19206 | G31: =SUM(G3:G30) -> 18616 | H31: =SUM(H3:H30) -> 77143 | I31: =SUM(I3:I30) -> 90704 | J31: =SUM(J3:J30) -> 78969 | K31: =SUM(D31+G31+J31) -> 168329

Sheet 10a.
A1: Megnevezés | B1: 2 0 1 1 . | I1: %
B3: eredeti ei. | C3: módosított ei. | D3: teljesítés
A4: I. Működési bevételek | B4: =SUM(B5:B6) -> 1311 | C4: =SUM(C5:C6) -> 1311 | D4: =SUM(D5:D6) -> 1053 | I4: =SUM(D4/C4) -> 0.8032036613
A5: 1) Intézményi működési bevételek | B5: 311 | C5: 311 | D5: 350 | I5: =SUM(D5/C5) -> 1.125401929
A6: 2) Sajátos működési bevételek | B6: =SUM(B7:B14) -> 1000 | C6: =SUM(C7:C14) -> 1000 | D6: 703 | I6: =SUM(D6/C6) -> 0.703
A7: Iparűzési adó
A8: Idegenforgalmi adó
A9: SZJA helyben maradó része
A10: SZJA jövedelemkül. Mérséklése
A11: Gépjárműadó
A12: Pótlékok, bírságok
A13: Bérleti díj, lakbér | B13: 1000 | C13: 1000 | D13: 703 | I13: =SUM(D13/C13) -> 0.703
A14: Egyéb sajátos bevétel, földvédelmi járulék
A15: II. Támogatások
A16: Normatív állami támogatás
A17: Központosított támogatás
A18: Normatív kötött felhasználású támogatás
A19: III. Felhalmozási és tőkebevételek
A20: Házingatlan értékesítése
A21: Telekértékesítés
A22: Bérbeadásból származó bevétel
A23: IV. Támogatásértékű bevételek
A24: Működési célú támogatásértékű bevételek
A25: OEP-től átvett pénzeszköz
A26: Kistérségi normatíva
A27: Központi költségvetéstől átvett pénzeszköz
A28: TÁMOP pályázat (könyvtár)
A29: Felhalmozási célú támogatásértékű bevételek
A30: KMOP pályázat (óvodabővítés)
A31: KMOP pályázat (faluközpont)
A32: V. Kölcsönök visszatérülése és fin. Műveletek
A33: Kölcsönök visszatérülése
A34: VI. Átvett pénzeszközök | D34: 3
A35: Működési célra átvett pénzeszközök | D35: 3
A36: VII. Pénzforgalom nélküli bevételek
A37: Előző évi pénzmaradvány
A38: Bevételek mindösszesen | B38: =SUM(B4,) -> 1311 | C38: =SUM(C4,) -> 1311 | D38: =SUM(D4,) -> 1053 | I38: =SUM(D38/C38) -> 0.8032036613

Sheet 10b.
A1: M e g n e v e z é s | B1: Személyi juttatások | E1: Járulékok | H1: Dologi kiadások | K1: Kiadások összesen
B2: Eredeti ei. | C2: Módosított ei. | D2: Teljesítés | E2: Eredeti ei. | F2: Módosított ei. | G2: Teljesítés | H2: Eredeti ei. | I2: Módosított ei. | J2: Teljesítés
A3: 851-011 Óvodai nevelés | B3: 36281 | C3: 36519 | D3: 34678 | E3: 8855 | F3: 8922 | G3: 8664 | H3: 3700 | I3: 4200 | J3: 4044 | K3: =SUM(D3,G3,J3,) -> 47386
A4: 852-011 Általános iskola 1-4. évfolyam | B4: 25171 | C4: 27064 | D4: 21228 | E4: 6263 | F4: 6732 | G4: 5152 | H4: 4067 | I4: 4157 | J4: 4060 | K4: =SUM(D4,G4,J4,) -> 30440
A5: 852-021 Általános iskola 5-8. évfolyam | B5: 23339 | C5: 24974 | D5: 32032 | E5: 5962 | F5: 6385 | G5: 7974 | H5: 3138 | I5: 3358 | J5: 3968 | K5: =SUM(D5,G5,J5,) -> 43974
A6: 855-914 Ált. isk. napközi és tanulószoba | B6: 2044 | C6: 2069 | D6: 1568 | E6: 488 | F6: 488 | G6: 379 | H6: 38 | I6: 38 | J6: 33 | K6: =SUM(D6+G6+J6) -> 1980
A7: 811-000 Építményüzemeltetés | B7: 4899 | C7: 4910 | D7: 7122 | E7: 1445 | F7: 1157 | G7: 1597 | H7: 16058 | I7: 17218 | J7: 16322 | K7: =SUM(D7+G7+J7) -> 25041
A8: 910-123 Könyvtári szolgáltatások | B8: 2694 | C8: 2694 | D8: 2958 | E8: 669 | F8: 669 | G8: 723 | H8: 1067 | I8: 1067 | J8: 319 | K8: =SUM(D8+G8+J8) -> 4000
A9: 910-121 Könyvtári állomány gyarapítása, nyilvántartása | H9: 100 | I9: 180 | J9: 208 | K9: =SUM(J9) -> 208
A10: 890-441 Közcélú foglalkoztatás
A11: Kiadások mindösszesen | B11: =SUM(B3:B10) -> 94428 | C11: 98230 | D11: 99586 | E11: 23682 | F11: 24353 | G11: 24489 | H11: 28168 | I11: 30218 | J11: 28954 | K11: 153029

Sheet 10c.
A1: Megnevezés | B1: Bevételek | F1: Kiadások
B2: Intézmény bevétele | C2: Állami támogatás | D2: Önkormányzati támogatás | E2: Összesen | F2: Személyi juttatások | G2: Járulékok | H2: Dologi kiadások | I2: Összesen
A3: Óvodai nevelés, ellátás | B3: 17 | C3: 21620 | D3: 25749 | E3: =SUM(B3:D3) -> 47386 | F3: 34678 | G3: 8664 | H3: 4044 | I3: =SUM(F3:H3) -> 47386
A4: Általános iskola 1-4. évfolyam | B4: 295 | C4: 15465 | D4: 14680 | E4: =SUM(B4:D4) -> 30440 | F4: 21228 | G4: 5152 | H4: 4060 | I4: 30440
A5: Általános iskola 5-8. évfolyam | B5: 706 | C5: 13332 | D5: 29936 | E5: =SUM(B5:D5) -> 43974 | F5: 32032 | G5: 7974 | H5: 3968 | I5: 43974
A6: Tanulószoba | C6: 235 | D6: 1745 | E6: =SUM(C6:D6) -> 1980 | F6: 1568 | G6: 379 | H6: 33 | I6: 1980
A7: Intézményüzemeltetés | D7: 25041 | E7: 25041 | F7: 7122 | G7: 1597 | H7: 16322 | I7: 25041
A8: Könyvtári szolgáltatások | B8: 38 | D8: 3962 | E8: =SUM(B8:D8) -> 4000 | F8: 2958 | G8: 723 | H8: 319 | I8: 4000
A9: Könyvtári állomány gyarapítása | C9: 80 | D9: 128 | E9: 208 | H9: 208 | I9: 208
A10: Közcélú foglalkoztatás | E10: =SUM(B10:D10) -> 0
A11: Összesen | B11: 1056 | C11: 50732 | D11: =SUM(D3:D10) -> 101241 | E11: 153029 | F11: 99586 | G11: 24489 | H11: 28954 | I11: =SUM(F11:H11) -> 153029

Sheet 11.
A1: Megnevezés | B1: Nyitó adatok | C1: Elszámolt értékvesztés | D1: Tárgyévben elszámolt értékvesztés | E1: Tárgyévben visszaírt értékvesztés | F1: Záró adatok
F2: Bekerülési érték | G2: Értékvesztés mértéke
A3: Egyéb tartós részesedések | B3: 7720 | F3: 7720
A4: Tartósan adott kölcsönök | B4: 328 | F4: 269
A5: Egyéb hosszú lejáratú követelések | B5: 63
A6: Befektetett eszközök összesen: | B6: =SUM(B3:B5) -> 8111 | F6: =SUM(F3:F5) -> 7989
A9: Követelések áruszállításból | B9: 434 | F9: 380
A10: Adósok | B10: 28421 | C10: 57 | D10: 1807 | E10: 57 | F10: 23219 | G10: 1807
A11: Rövid lejáratú kölcsönök | B11: 567 | F11: 1059
A12: Egyéb követelések | B12: 1655 | F12: 1158
A13: Forgatási célú, hitelviszonyt megtestesítő értékpapír
A14: Forgóeszközök összesen: | B14: =SUM(B9:B13) -> 31077 | C14: =SUM(C10:C13) -> 57 | D14: =SUM(D10:D13) -> 1807 | E14: =SUM(E10:E13) -> 57 | F14: =SUM(F9:F13) -> 25816 | G14: =SUM(G10:G13) -> 1807
A17: Eszközök összesen: | B17: =SUM(B6,B14,) -> 39188 | C17: =SUM(C14) -> 57 | D17: =SUM(D14) -> 1807 | E17: =SUM(E14) -> 57 | F17: =SUM(F6,F14,) -> 33805 | G17: =SUM(G14) -> 1807

Sheet 12.
A1: Megnevezés | B1: Összes előirányzat | C1: 2010.12.31-ig teljesített kifizetés | D1: 2011.12.31-ig teljesített kifizetés | E1: 2012. évi tervszám | F1: 2012. év utáni időre áthúzódó
A2: Könyvtár, konyha építése (garanciális visszatartás) | B2: 144079 | C2: 137061 | F2: 7038
A3: Óvodabővítés (építési költség) | B3: 149217 | C3: 62259 | D3: 86958
A4: Patak u. tervezési költség | B4: 750 | D4: 312 | E4: 438
A5: Óvodaépítés jólteljesítési garancia | B5: 1500 | F5: 1500
A6: Rózsa- köz felújítás | B6: 3847 | D6: 3668 | F6: 179
A8: Áthúzódó kiadások mindösszesen: | B8: =SUM(B2:B7) -> 299393 | C8: =SUM(C2:C6) -> 199320 | D8: =SUM(D2:D7) -> 90938 | E8: =SUM(E2:E6) -> 438 | F8: =SUM(F2:F6) -> 8717

Sheet 13.
A1: ESZKÖZÖK | B1: Nettó érték | C1: Állományi érték
A2: I. Immateriális javak | B2: 297
A3: II. Tárgyi eszközök | B3: 2445673
A4: Forgalomképtelen ingatlanok | B4: 1248946
A5: Korlátozottan forgalomképes ingatlanok | B5: 819823
A6: Forgalomképes ingatlanok | B6: 313192
A7: Gépek, berendezések, felszerelések | B7: 18495
A8: Járművek
A9: Üzemeltetésre átadott eszközök | B9: 42726
A11: III. Beruházások | C11: 14247
A13: IV. Befektetett pénzügyi eszközök | C13: =SUM(C14:C15) -> 7989
A14: Forgalomképes tartós részesedés | C14: 7720
A15: Egyéb tartós forgalomképes befektetés | C15: =SUM(C16:C17) -> 269
A16: -Tartósan adott kölcsönök (kamatmentes kölcsön) | C16: 269
A17: -Egyéb hosszú lejáratú követelések (lakások)
A19: V. Követelések áruszállításból | C19: 434
A21: VI. Adósok | C21: =SUM(C22:C24) -> 21412
A22: Helyi adóból hátralék | C22: 19538
A24: Lakbér | C24: 1874
A26: VII. Rövid lejáratú kölcsönök | C26: 1059
A28: VIII. Egyéb követelések | C28: 1158
A30: IX. Értékpapírok
A32: X. Pénzeszközök | C32: =SUM(C33:C35) -> 199426
A33: Pénztárak és betétkönyvek | C33: 206
A34: Költségvetési bankszámlák | C34: 199207
A35: Idegen pénzeszközök (letétek, illetékbeszedési számla) | C35: 13
A37: XI. Aktív pénzügyi elszámolások | C37: =SUM(C38:C39) -> 2809
A38: Függő kiadások | C38: 265
A39: Átfutó kiadások | C39: 2544
A40: Kiegyenlítő kiadások
A42: ESZKÖZÖK ÖSSZESEN: | B42: =SUM(B2:B3) -> 2445970 | C42: =SUM(C11,C13,C19,C21,C26,C28,C32,C37,) -> 248534
A44: MINDÖSSZESEN: | B44: =SUM(B42,C42,) -> 2694504
A46: FORRÁSOK | B46: Nettó érték | C46: Állományi érték
A47: I. Saját tőke | C47: =SUM(C48:C49) -> 2463497
A48: Saját tulajdonban lévő tartós tőke | C48: 2282707
A49: Tőkeváltozások | C49: 180790
A52: II. Következő évben felhaszn. pénzmaradvány | C52: 201621
A54: III. Rövid lejáratú kötelezettségek | C54: =SUM(C55:C58) -> 28718
A55: Kötelezettségek áruszállításból és szolgáltatásból | C55: 7214
A56: Helyi adóból származó túlfizetés | C56: 19890
A57: Egyéb kötelezettség | C57: 114
A58: Garanciából származó kötelezettség | C58: 1500
A60: IV. Egyéb passzív pénzügyi elszámolások | C60: 614
A63: FORRÁSOK ÖSSZESEN: | C63: =SUM(C47,C52:C54,C60,) -> 2694450

Sheet 14.
A1: a/ Forgalomképtelen ingatlanok
A3: 1., Út, híd, járda, tér
A4: Ssz. | B4: Épület, építmény megnevezése | C4: Fkvi. Szla. | D4: Leírási kulcs (%) | E4: Bruttó érték | F4: Elszám. écs. | G4: Nettó érték
F5: 2011. XII. 31-ig | G5: 2011. XII. 31-ig
A6: 1. | B6: Útépítés | C6: 12341 | D6: 3 | E6: 48468681 | F6: 18766893 | G6: =SUM(E6-F6) -> 29701788
A7: 2. | B7: Móricz-liget útépítés | C7: 12341 | D7: 3 | E7: 39509186 | F7: 11410416 | G7: 28098770
A8: 3. | B8: Petőfi u. utcanyitás | C8: 1234 | D8: 3 | E8: 8641369 | F8: 2142451 | G8: 6498918
A9: 4. | B9: Bocskay u. megnyitása | C9: 1234 | D9: 3 | E9: 3990321 | F9: 848123 | G9: 3142198
A10: 5. | B10: Temető út, sétány | C10: 12141 | D10: 3 | E10: 185000 | F10: 49923 | G10: 135077
A11: 6. | B11: Útépítés bérlakásoknál | C11: 1234 | D11: 3 | E11: 5340613 | F11: 1294048 | G11: 4046565
A12: 7. | B12: Gesztenyés út | C12: 1234 | D12: 3 | E12: 70980000 | F12: 19158765 | G12: 51821235
A13: 8. | B13: Hídfelújítás | C13: 121141 | D13: 3 | E13: 3125000 | F13: 1312224 | G13: 1812776
A14: 9. | B14: Járdaépítés | C14: 123141 | D14: 3 | E14: 1348750 | F14: 606817 | G14: 741933
A15: 10. | B15: Liget u. (244/2) | C15: 1234 | D15: 3 | E15: 1250 | F15: 248 | G15: 1002
A16: 11. | B16: Liget u. (244/4) | C16: 1234 | D16: 3 | E16: 1250 | F16: 248 | G16: 1002
A17: 12. | B17: Sándor udvar (244/18) | C17: 1234 | D17: 3 | E17: 1250 | F17: 248 | G17: 1002
A18: 13. | B18: Kozáromi út (244/21) | C18: 1234 | D18: 3 | E18: 1250 | F18: 248 | G18: 1002
A19: 14. | B19: Kozáromi út (244/23) | C19: 1234 | D19: 3 | E19: 1250 | F19: 248 | G19: 1002
A20: 15. | B20: Kozáromi út (244/29) | C20: 1234 | D20: 3 | E20: 1250 | F20: 248 | G20: 1002
A21: 16. | B21: Móriczi út | C21: 1244 | D21: 3 | E21: 17159654 | F21: 3115528 | G21: 14044126
A22: 17. | B22: KEK előtti térburkolat | C22: 1234 | D22: 3 | E22: 1587175 | F22: 303698 | G22: 1283477
A23: 18. | B23: Közösségi Ház járda, kerítés | C23: 1234 | D23: 3 | E23: 396000 | F23: 106886 | G23: 289114
A24: 19. | B24: ABC előtti területrendezés | C24: 123141 | D24: 3 | E24: 1213915 | F24: 546146 | G24: 667769
A25: 20. | B25: Margaréta köz útépítés | C25: 12341 | D25: 3 | E25: 1027142 | F25: 159732 | G25: 867410
A26: 21. | B26: Akácos út felújítás | C26: 12341 | D26: 3 | E26: 17301613 | F26: 2616574 | G26: 14685039
A27: 22. | B27: Móriczi út járdaépítés | C27: 12341 | D27: 3 | E27: 2539254 | F27: 412191 | G27: 2127063
A28: 23. | B28: Jókai u. járdaépítés | C28: 12341 | D28: 3 | E28: 514442 | F28: 53678 | G28: 460764
A29: 24. | B29: Petőfi u. járdaépítés | C29: 12341 | D29: 3 | E29: 1202736 | F29: 147596 | G29: 1055140
A30: 25. | B30: Zsámbéki út járda, térkőburkolás | C30: 12341 | D30: 3 | E30: 1434552 | F30: 176982 | G30: 1257570
A31: 26. | B31: 05, 09, 020 hrsz út | C31: 12341 | D31: 3 | E31: 3600 | F31: 450 | G31: 3150
A32: 27. | B32: Kossuth, Petőfi u. útburkolás | C32: 12341 | D32: 3 | E32: 9274560 | F32: 1147250 | G32: 8127310
A33: 28. | B33: Hivatal mögött járdaépítés | C33: 12341 | D33: 3 | E33: 563490 | F33: 60000 | G33: 503490
A34: 29. | B34: Pipacs u. útépítés | C34: 12341 | D34: 3 | E34: 33198164 | F34: 3039678 | G34: 30158486
A35: 30. | B35: Tavasz u., Hárs-Tulipán-Jázmin köz útépítés | C35: 12341 | D35: 3 | E35: 15079404 | F35: 1282474 | G35: 13796930
A36: 31. | B36: Árvalányhaj u. felújítás | C36: 12441 | D36: 3 | E36: 18552720 | F36: 1577868 | G36: 16974852
A37: 32. | B37: Gesztenyés út járdaépítés | C37: 12341 | D37: 3 | E37: 3927858 | F37: 131717 | G37: 3796141
A38: 33. | B38: Boróka, Jókai u. felújítás | C38: 12441 | D38: 3 | E38: 15768888 | F38: 531391 | G38: 15237497
A39: 34. | B39: Petőfi u. útépítés | C39: 12341 | D39: 3 | E39: 22684451 | F39: 1076962 | G39: 21607489
A40: 35. | B40: Dombhát u. útépítés | C40: 12341 | D40: 3 | E40: 8224131 | F40: 435796 | G40: 7788335
A41: 36. | B41: Rózsa köz útépítés | C41: 12341 | D41: 3 | E41: 3573508 | F41: 4699 | G41: 3568809
A42: Összesen: | E42: =SUM(E6:E41) -> 356823677 | F42: =SUM(F6:F41) -> 72518444 | G42: 284305233

Sheet 14-2
A1: 2., Parkok, játszóterek
A2: Ssz. | B2: Épület, építmény megnevezése | C2: Fkvi. Szla. | D2: Leírási kulcs (%) | E2: Bruttó érték | F2: Elszám. écs. | G2: Nettó érték
F3: 2010. XII. 31-ig | G3: 2010. XII. 31-ig
A4: 1. | B4: Móricz-liget játszótér | C4: 1234 | D4: 3 | E4: 2855159 | F4: 462058 | G4: =SUM(E4-F4) -> 2393101
A5: 2. | B5: Gesztenyés út díszpark | C5: 1234 | D5: 3 | E5: 28661295 | F5: 3796128 | G5: 24865167
A6: 3. | B6: Liget u. park, játszótér | C6: 1234 | D6: 3 | E6: 10036905 | F6: 1556940 | G6: 8479965
A7: 4. | B7: Park emlékműnél | C7: 123341 | D7: 3 | E7: 1495261 | F7: 701112 | G7: 794149
A8: 5. | B8: Park Közösségi Háznál | C8: 12141 | D8: 3 | E8: 1076643 | F8: 472335 | G8: 604308
A9: 6. | B9: Park bérlakásoknál | C9: 1234 | D9: 3 | E9: 8151576 | F9: 1975140 | G9: 6176436
A10: 7. | B10: Temetőparkosítás | C10: 123141 | D10: 3 | E10: 1746003 | F10: 362495 | G10: 1383508
A11: 8. | B11: Móricz-liget park | C11: 1234 | D11: 3 | E11: 953742 | F11: 215767 | G11: 737975
A12: 9. | B12: Hivatal mögötti parkoló | C12: 12341 | D12: 3 | E12: 10145742 | F12: 1555216 | G12: 8590526
A13: 10. | B13: Gesztenyés úti parkoló | C13: 12341 | D13: 3 | E13: 7630724 | F13: 1158403 | G13: 6472321
A14: 11. | B14: Liget u. parkoló | C14: 12341 | D14: 3 | E14: 4021901 | F14: 631711 | G14: 3390190
A15: 12. | B15: Óvoda járda, parkoló | C15: 12341 | D15: 3 | E15: 4853298 | F15: 532398 | G15: 4320900
A16: 13. | B16: Óvoda kertépítés | C16: 12341 | D16: 3 | E16: 5125788 | F16: 665743 | G16: 4460045
A17: 14. | B17: Óvoda játszótér | C17: 12341 | D17: 3 | E17: 2891810 | F17: 351832 | G17: 2539978
A18: Összesen: | E18: =SUM(E4:E17) -> 89645847 | F18: =SUM(F4:F17) -> 14437278 | G18: =SUM(G4:G17) -> 75208569
A21: 3., Egyéb ingatlanok
A22: Ssz. | B22: Épület, építmény megnevezése | C22: Fkvi. Szla. | D22: Leírási kulcs (%) | E22: Bruttó érték | F22: Elszám. écs. | G22: Nettó érték
F23: 2011. XII. 31-ig | G23: 2011. XII. 31-ig
A24: 1. | B24: Víztorony | C24: 12341 | D24: 3 | E24: 5069475 | F24: 1438202 | G24: =SUM(E24-F24) -> 3631273
A25: 2. | B25: Buszmegálló | C25: 12341 | D25: 3 | E25: 316250 | F25: 113825 | G25: 202425
A26: 3. | B26: Buszváró | C26: 12141 | D26: 3 | E26: 374500 | F26: 107178 | G26: 267322
A27: 4. | B27: Temetőkerítés | C27: 1234 | D27: 3 | E27: 1424500 | F27: 402601 | G27: 1021899
A28: 5. | B28: Emlékmű | C28: 123341 | D28: 3 | E28: 700991 | F28: 336405 | G28: 364586
A29: 6. | B29: Ravatalozó | C29: 12131 | D29: 2 | E29: 15316379 | F29: 1991830 | G29: 13324549
A30: 7. | B30: Csapadékvíz-elvezetés | C30: 12141 | D30: 3 | E30: 12914412 | F30: 4655102 | G30: 8259310
A31: 8. | B31: Temető közművesítés | C31: 12341 | D31: 3 | E31: 539573 | F31: 101794 | G31: 437779
A32: 9. | B32: Vadvirág u. csapadékvíz-elvezetés | C32: 12341 | D32: 3 | E32: 572664 | F32: 81479 | G32: 491185
A33: 10. | B33: Gesztenyés úti buszmegálló | C33: 12341 | D33: 3 | E33: 426120 | F33: 63165 | G33: 362955
A34: 11. | B34: Településközpont fejlesztése | C34: 12341 | D34: 3 | E34: 197395190 | F34: 11799823 | G34: 185595367
A35: Összesen: | E35: =SUM(E24:E34) -> 235050054 | F35: =SUM(F24:F34) -> 21091404 | G35: 213958650

Sheet 14-3
A1: 4., Kiépítetlen utak
A2: Ssz. | B2: Hrsz. | C2: Terület (m2) | D2: Könyv szerinti érték
A4: 1. | B4: 256 (Liget u. - volt víztorony) | C4: 1315 | D4: 4047000
A5: 2. | B5: 321/2 (Árvácska u.) | C5: 762 | D5: 2420000
A6: 3. | B6: 321/14 (Rigó köz) | C6: 572 | D6: 1897000
A7: 4. | B7: 321/64 (Szirom köz) | C7: 853 | D7: 2773000
A8: 5. | B8: 321/98 (Bokréta köz) | C8: 384 | D8: 2251000
A9: 6. | B9: 321/104 (Árvácska u.) | C9: 1246 | D9: 3959000
A10: 7. | B10: 321/108 (Nyír köz) | C10: 873 | D10: 2856000
A11: 8. | B11: 321/223 (Pillangó köz) | C11: 1155 | D11: 3878000
A12: 9. | B12: 321/203 (Barka köz) | C12: 1008 | D12: 3290000
A13: 10. | B13: 321/243 (Ördöglovas lejtő) | C13: 13563 | D13: 44619000
A14: 11. | B14: 321/256 (Boróka u.) | C14: 1264 | D14: 4404000
A15: 12. | B15: 321/287 (Őzike köz) | C15: 538 | D15: 1869000
A16: 13. | B16: 321/294 (Vadvirág u.) | C16: 7024 | D16: 23719000
A17: 14. | B17: 321/314 (Rózsa köz) | C17: 454 | D17: 1584000
A18: 15. | B18: 321/321 (Muskátli köz) | C18: 362 | D18: 1253000
A19: 16. | B19: 321/324 (Dombhát u.) | C19: 1563 | D19: 5292000
A20: 17. | B20: 321/356 (Boróka u.) | C20: 2661 | D20: 9008000
A21: 18. | B21: 321/385 (Rét köz) | C21: 313 | D21: 1105000
A22: 19. | B22: 321/392 (Boróka u.) | C22: 4144 | D22: 13276000
A23: 20. | B23: 60/1 (Füzes u.) | C23: 2738 | D23: 8214000
A24: 21. | B24: 254 (Liget u.) | C24: 3850 | D24: 11550000
A25: 22. | B25: 443/1 (Gazdasági terület) | C25: 2619 | D25: 139668
A26: 23. | B26: 443/4 (Gazdasági terület) | C26: 2746 | D26: 147745
A27: 24. | B27: 443/7 (Gazdasági terület) | C27: 3935 | D27: 212365
A28: Összesen: | C28: =SUM(C4:C27) -> 55942 | D28: =SUM(D4:D27) -> 153763778

Sheet 14-4
A1: 5., Kiépített utak
A2: Ssz. | B2: Hrsz. | C2: Terület (m2) | D2: Könyv szerinti érték
A4: 1. | B4: 29 (Bem J. u.) | C4: 4091 | D4: 12273000
A5: 2. | B5: 51 (Kiss J. altb. u.) | C5: 1942 | D5: 5826000
A6: 3. | B6: 54 (Akác sor) | C6: 632 | D6: 1896000
A7: 4. | B7: 74 (Petőfi S. u.) | C7: 6805 | D7: 20415000
A8: 5. | B8: 101 (Jókai M. u.) | C8: 4896 | D8: 14688000
A9: 6. | B9: 124 (Kossuth L. u.) | C9: 3749 | D9: 11247000
A10: 7. | B10: 161 (Deák F. u.) | C10: 5721 | D10: 17163000
A11: 8. | B11: 197 (Arany J. u.) | C11: 5512 | D11: 16536000
A12: 9. | B12: 215 (Patak u.) | C12: 592 | D12: 1776000
A13: 10. | B13: 252 (Liget u.) | C13: 1212 | D13: 3636000
A14: 11. | B14: 257 (Liget u.) | C14: 1209 | D14: 3627000
A15: 12. | B15: 240 (Akácos u.) | C15: 4931 | D15: 14793000
A16: 13. | B16: 263 (Liget u.) | C16: 4870 | D16: 14610000
A17: 14. | B17: 303 (Széchenyi u.) | C17: 4503 | D17: 13509000
A18: 15. | B18: 104 (Móriczi út) | C18: 11453 | D18: 34359000
A19: 16. | B19: 321/69 (Pipacs u.) | C19: 3592 | D19: 10776000
A20: 17. | B20: 321/119 (Hárs köz) | C20: 798 | D20: 2677000
A21: 18. | B21: 321/131 (Búzavirág u.) | C21: 3561 | D21: 10683000
A22: 19. | B22: 321/158 (Jázmin köz) | C22: 790 | D22: 2638000
A23: 20. | B23: 321/166 (Orgona köz) | C23: 803 | D23: 2690000
A24: 21. | B24: 321/213 (Tulipán köz) | C24: 563 | D24: 1858000
A25: 22. | B25: 321/218 (Liliom lejtő) | C25: 2173 | D25: 6519000
A26: 23. | B26: 321/241 (Árvalányhaj u.) | C26: 11885 | D26: 35655000
A27: 24. | B27: 321/275 (Dombhát u.) | C27: 1241 | D27: 4349000
A28: 25. | B28: 321/350 (Tavasz u.) | C28: 1120 | D28: 3931000
A29: 26. | B29: 216/1 (Patak u.) | C29: 1669 | D29: 5007000
A30: 27. | B30: 282 (Thallóczy u.) | C30: 6447 | D30: 19341000
A31: 28. | B31: 435 (Petőfi S. u.) | C31: 1685 | D31: 5055000
A32: 29. | B32: 321/19 (Búzavirág u.) | C32: 3130 | D32: 9390000
A33: 30. | B33: 321/68 (Menta köz) | C33: 715 | D33: 2145000
A34: 31. | B34: 321/175 (Pipacs u.) | C34: 3780 | D34: 11340000
A35: 32. | B35: 321/102 (Ördöglovas lejtő) | C35: 8503 | D35: 25509000
A36: 33. | B36: 241 (Gesztenyés út) | C36: 20242 | D36: 60726000
A37: 34. | B37: 321/59 (Margaréta köz) | C37: 1012 | D37: 3305000
A38: Összesen: | C38: =SUM(C4:C37) -> 135827 | D38: =SUM(D4:D37) -> 409948000
A40: 6,. Egyéb területek
A41: Ssz. | B41: Hrsz. | C41: Terület (m2) | D41: Könyv szerinti érték
A43: 1. | B43: 024/1 | C43: 266 | D43: 1136000
A44: Összesen: | C44: =SUM(C43) -> 266 | D44: =SUM(D43) -> 1136000
A46: 7., Közterületek
A47: Ssz. | B47: Hrsz. | C47: Terület (m2) | D47: Könyv szerinti érték
A49: 1. | B49: 321/1 | C49: 1296 | D49: 3807000
A50: 2. | B50: 321/244 | C50: 1312 | D50: 3936000
A51: 3. | B51: 321/295 | C51: 943 | D51: 2829000
A52: 4. | B52: 321/432 | C52: 1425 | D52: 4275000
A53: 5. | B53: 321/242 | C53: 1548 | D53: 1548000
A54: Összesen: | C54: =SUM(C49:C53) -> 6524 | D54: =SUM(D49:D53) -> 16395000

Sheet 14-5
A1: 8., Földterületek
A2: Ssz. | B2: Megnevezés | C2: Hrsz. | D2: Könyv szerinti érték
A4: 1. | B4: Óvoda zöldterület | C4: 267/1 | D4: 2209000
A5: 2. | B5: Temető földterület | C5: 220/2 | D5: 14451000
A6: 3. | B6: Iskola földterület | C6: 242 | D6: 21121000
A7: 4. | B7: Önkorm. Lakások földterület | D7: 7030000
A8: 5. | B8: Közösségi Ház földterület | C8: 243 | D8: 8220000
A9: 6. | B9: Új temető földterület | C9: 013/1 | D9: 31200000
A10: 7. | B10: Sportpálya melletti terület | C10: 220/15 | D10: 10000000
A11: Összesen: | D11: =SUM(D4:D10) -> 94231000
A14: Forgalomképtelen ingatlanok
C15: mindösszesen: | D15: =SUM('[1]14.'!G42,'[1]14-2'!G18,'[1]14-2'!G35,'[1]14-3'!D28,'[1]14-4 '!D38,'[1]14-4 '!D44,'[1]14-4 '!D54,'14-5'!D11,) -> 1248946230

Sheet 14-6
A1: b/ Korlátozottan forgalomképes ingatlanok
A3: 1., Intézmények ingatlanai
A4: Ssz. | B4: Épület, építmény megnevezése | C4: Fkvi. Szla. | D4: Leírási kulcs (%) | E4: Bruttó érték | F4: Elszám. écs. | G4: Nettó érték
F5: 2011. XII. 31-ig | G5: 2011. XII. 31-ig
A6: 1. | B6: Társasházi lakások | C6: 1233 | D6: 2 | E6: 69302225 | F6: 11020868 | G6: =SUM(E6-F6) -> 58281357
A7: 2. | B7: Közösségi Ház | C7: 123131 | D7: 2 | E7: 64080065 | F7: 13667511 | G7: 50412554
A8: 3. | B8: Óvoda | C8: 1233 | D8: 2 | E8: 253703581 | F8: 18464098 | G8: 235239483
A9: 4. | B9: Általános Iskola | C9: 12131 | D9: 2 | E9: 189640937 | F9: 29851324 | G9: 159789613
A10: 5. | B10: Polgármesteri Hivatal | C10: 12331 | D10: 2 | E10: 72739812 | F10: 7717786 | G10: 65022026
A11: 6. | B11: Gyógyszertár | C11: 12331 | D11: 2 | E11: 29437700 | F11: 2329782 | G11: 27107918
A12: 7. | B12: Fogorvosi Rendelő | C12: 12331 | D12: 2 | E12: 1311845 | F12: 91360 | G12: 1220485
A13: 8. | B13: Könyvtár, konyha | C13: 12331 | D13: 2 | E13: 141836738 | F13: 6701303 | G13: 135135435
A14: 9. | B14: Karbantartó műhely | C14: 12331 | D14: 2 | E14: 4609506 | F14: 216520 | G14: 4392986
A15: Összesen: | E15: =SUM(E6:E14) -> 826662409 | F15: =SUM(F6:F14) -> 90060552 | G15: 736601857
A18: 2., Sportlétesítmények
A19: Ssz. | B19: Épület, építmény megnevezése | C19: Fkvi. Szla. | D19: Leírási kulcs (%) | E19: Bruttó érték | F19: Elszám. écs. | G19: Nettó érték
F20: 2011. XII. 31-ig | G20: 2011. XII. 31-ig
A21: 1. | B21: Tornacsarnok | C21: 12131 | D21: 2 | E21: 61094958 | F21: 14963956 | G21: =SUM(E21-F21) -> 46131002
A22: Összesen: | E22: =SUM(E21) -> 61094958 | F22: =SUM(F21) -> 14963956 | G22: =SUM(E22-F22) -> 46131002
A25: 3., Egyéb ingatlanok
A26: Ssz. | B26: Épület, építmény megnevezése | C26: Fkvi. Szla. | D26: Leírási kulcs (%) | E26: Bruttó érték | F26: Elszám. écs. | G26: Nettó érték
F27: 2011. XII. 31-ig | G27: 2011. XII. 31-ig
A28: 1. | B28: Óvoda szennyvízelvezetés | C28: 1234 | D28: 3 | E28: 4337630 | F28: 1041384 | G28: =SUM(E28-F28) -> 3296246
A29: 2. | B29: Kapu (bérlakás) | C29: 1234 | D29: 3 | E29: 21045 | F29: 5076 | G29: 15969
A30: 3. | B30: Sportpálya kerítés, járda | C30: 1234 | D30: 3 | E30: 3594000 | F30: 970086 | G30: 2623914
A31: 4. | B31: Iskola kazán | C31: 12441 | D31: 3 | E31: 17826359 | F31: 1646864 | G31: 16179495
A32: 5. | B32: Óvoda előtető | C32: 12341 | D32: 3 | E32: 6607200 | F32: 616911 | G32: 5990289
A33: Összesen: | E33: =SUM(E28:E32) -> 32386234 | F33: =SUM(F28:F32) -> 4280321 | G33: 28105913
A36: 4., Termőföldek
A37: Ssz. | B37: Hrsz. | C37: Terület (m2) | E37: Könyv szerinti érték
A39: 1. | B39: 03/3, 7, 8 | C39: 3250 | E39: 1950000
A40: 2. | B40: 061 | C40: 13633 | E40: 4104900
A41: 3. | B41: 053 | C41: 4943 | E41: 2929000
A42: Összesen: | C42: =SUM(C39:D41) -> 21826 | E42: =SUM(E39:E41) -> 8983900
A45: Korlátozottan forgalomképes ingatlanok
C46: mindösszesen: | F46: =SUM(G15,G22,G33,E42,) -> 819822672

Sheet 14-7
A1: c/ Forgalomképes ingatlanok
A3: 1., Épületek
A4: Ssz. | B4: Épület, építmény megnevezése | C4: Fkvi. Szla. | D4: Leírási kulcs (%) | E4: Bruttó érték | F4: Elszám. écs. | G4: Nettó érték
F5: 2011. XII. 31-ig | G5: 2011. XII. 31-ig
A6: 1. | B6: Lakás (Sándor udvar) | C6: 123131 | D6: 2 | E6: 1000000 | F6: 319945 | G6: =SUM(E6-F6) -> 680055
A7: Összesen: | E7: =SUM(E6) -> 1000000 | F7: =SUM(F6) -> 319945 | G7: =SUM(E7-F7) -> 680055
A10: 2., Egyéb ingatlanok
A11: Ssz. | B11: Épület, építmény megnevezése | C11: Fkvi. Szla. | D11: Leírási kulcs (%) | E11: Bruttó érték | F11: Elszám. écs. | G11: Nettó érték
F12: 2011. XII. 31-ig | G12: 2011. XII. 31-ig
A13: 1. | B13: Zsámbéki út vízhálózat | C13: 1234 | D13: 3 | E13: 4562500 | F13: 822754 | G13: =SUM(E13-F13) -> 3739746
A14: 2. | B14: Bocskai u. szennyvízcsatorna | C14: 1234 | D14: 3 | E14: 5398554 | F14: 1223102 | G14: 4175452
A15: 3. | B15: Gázterv | C15: 123141 | D15: 3 | E15: 138480 | F15: 78899 | G15: 59581
A16: 4. | B16: Ívóvízvezeték Bocskai út | C16: 1234 | D16: 3 | E16: 2286753 | F16: 481920 | G16: 1804833
A17: 5. | B17: Bérlakás szennyvízvezeték | C17: 1234 | D17: 3 | E17: 3587820 | F17: 869342 | G17: 2718478
A18: 6. | B18: Sportpálya | C18: 12141 | D18: 3 | E18: 704496 | F18: 398209 | G18: 306287
A19: 7. | B19: Piac | C19: 12341 | D19: 3 | E19: 824401 | F19: 296717 | G19: 527684
A20: 9. | B20: Csatornaépítés | C20: 12341 | D20: 3 | E20: 40750130 | F20: 22001694 | G20: 18748436
A21: 10. | B21: Petőfi-Jókai u. villanyhálózat | C21: 1234 | D21: 3 | E21: 2215000 | F21: 505848 | G21: 1709152
A22: 11. | B22: Móricz liget vízellátás | C22: 12341 | D22: 3 | E22: 14933942 | F22: 4590947 | G22: 10342995
A23: 12. | B23: Móricz liget vízrendezés | C23: 12341 | D23: 3 | E23: 10250000 | F23: 3292781 | G23: 6957219
A24: 13. | B24: Gesztenyés, Zsámbéki út tervek | C24: 1234 | D24: 3 | E24: 300000 | F24: 56224 | G24: 243776
A25: 14. | B25: Móricz liget forgalomcsillapító terve | C25: 1234 | D25: 3 | E25: 187500 | F25: 35137 | G25: 152363
A26: 15. | B26: Móricz liget villanyhálózat | C26: 12341 | D26: 3 | E26: 11540835 | F26: 3520432 | G26: 8020403
A27: 16. | B27: Villanyhálózat | C27: 123141 | D27: 3 | E27: 1353345 | F27: 655963 | G27: 697382
A28: 17. | B28: Kozáromi út csatornaépítés | C28: 12341 | D28: 3 | E28: 1095067 | F28: 183118 | G28: 911949
A29: 18. | B29: Vadvirág u. közvilágítás | C29: 12341 | D29: 3 | E29: 418680 | F29: 51376 | G29: 367304
A30: 19. | B30: Gesztenyés út közvilágítás | C30: 12341 | D30: 3 | E30: 367200 | F30: 44336 | G30: 322864
A31: 20. | B31: Ördöglovas lejtő közvilágítás | C31: 12341 | D31: 3 | E31: 418680 | F31: 51342 | G31: 367338
A32: 21. | B32: Kossuth, Petőfi u. vízelvezetés | C32: 12341 | D32: 3 | E32: 5922124 | F32: 718930 | G32: 5203194
A33: 22. | B33: Ördöglovas lejtő forgalomcsillapító | C33: 12341 | D33: 3 | E33: 826512 | F33: 105723 | G33: 720789
A34: 23. | B34: Móricz liget közvilágítási hálózat | C34: 12341 | D34: 3 | E34: 1199096 | F34: 80914 | G34: 1118182
A35: 24. | B35: Sportpálya, öltöző felújítás | C35: 12441 | D35: 3 | E35: 2940725 | F35: 101999 | G35: 2838726
A36: Összesen: | E36: =SUM(E13:E35) -> 112221840 | F36: =SUM(F13:F35) -> 40167707 | G36: 72054133

Sheet 14-8
A1: 3., Belterületi telkek
A2: Ssz. | B2: Hrsz. | C2: Terület (m2) | D2: Könyv szerinti érték
A4: 1. | B4: 321/408 | C4: 1911 | D4: 9555000
A5: 2. | B5: 321/409 | C5: 1553 | D5: 7765000
A6: 3. | B6: 321/410 | C6: 1410 | D6: 7050000
A7: 4. | B7: 321/411 | C7: 1252 | D7: 6260000
A8: 5. | B8: 321/412 | C8: 1225 | D8: 6125000
A9: 6. | B9: 321/417 | C9: 1229 | D9: 6145000
A10: 7. | B10: 321/418 | C10: 1164 | D10: 5820000
A11: 8. | B11: 321/419 | C11: 1245 | D11: 6225000
A12: 9. | B12: 321/420 | C12: 1205 | D12: 6025000
A13: 10. | B13: 321/421 | C13: 1277 | D13: 6385000
A14: 11. | B14: 321/422 | C14: 1327 | D14: 6635000
A15: 12. | B15: 321/423 | C15: 1262 | D15: 6310000
A16: 13. | B16: 321/424 | C16: 1302 | D16: 6510000
A17: 14. | B17: 321/425 | C17: 1639 | D17: 8195000
A18: 15. | B18: 321/426 | C18: 1996 | D18: 9980000
A19: 16. | B19: 321/100 | C19: 1434 | D19: 11472000
A20: 17. | B20: 321/73 | C20: 2775 | D20: 22200000
A21: 18. | B21: 321/393 | C21: 1257 | D21: 6285000
A22: 19. | B22: 321/395 | C22: 1959 | D22: 9795000
A23: 20. | B23: 321/396 | C23: 1249 | D23: 6245000
A24: 21. | B24: 321/397 | C24: 1200 | D24: 6000000
A25: 22. | B25: 71/3 | C25: 808 | D25: 6464000
A26: 23. | B26: 253/2 | C26: 961 | D26: 7688000
A27: 24. | B27: 259 | C27: 1900 | D27: 15200000
A28: 25. | B28: 261 | C28: 2192 | D28: 17536000
A29: 26. | B29: 42 | C29: 1324 | D29: 6620000
A30: 27. | B30: 43 | C30: 1274 | D30: 6370000
A31: 28. | B31: 1/2 | C31: 850 | D31: 7300000
A32: 29. | B32: 321/398 | C32: 1143 | D32: 1343025
A33: 30. | B33: 321/399 | C33: 1218 | D33: 1431150
A34: 31. | B34: 321/400 | C34: 1212 | D34: 1424100
A35: 32. | B35: 321/401 | C35: 1229 | D35: 1444075
A36: Összesen: | C36: =SUM(C4:C35) -> 44982 | D36: =SUM(D4:D35) -> 239802350
A39: 4., Földterületek
A40: Ssz. | B40: Hrsz. | C40: Hrsz. | D40: Könyv szerinti érték
A42: 1. | B42: Földterület | C42: 439/1 | D42: 355600
A43: 2. | B43: Erdőrész | C43: 019/9 | D43: 300000
A44: Összesen: | D44: =SUM(D42:D43) -> 655600
A47: Forgalomképes ingatlanok
C48: mindösszesen: | D48: =SUM('[1]14-7'!G7,'[1]14-7'!G36,'14-8'!D36,'14-8'!D44,) -> 313192138
A51: Ingatlanok mindösszesen: | D51: =SUM('[1]14-5'!D15,'[1]14-6'!F46:G46,'14-8'!D48,) -> 2381961040

Sheet 14-9 gépek, berend.
A1: Gépek, berendezések, felszerelések
A3: 1., Hivatal
A4: Ssz. | B4: Megnevezés | C4: Fkvi. Szla. | D4: Leírási kulcs (%) | E4: Bruttó érték | F4: Elszám. écs. | G4: Nettó érték
F5: 2011. XII. 31-ig | G5: 2011. XII. 31-ig
A6: 1. | B6: Euro Aqua mobil WC | C6: 13132 | D6: 14.5 | E6: 1014559 | F6: 950079 | G6: =SUM(E6-F6) -> 64480
A7: 2. | B7: Gyógyszertár riasztó | C7: 131321 | D7: 14.5 | E7: 538234 | F7: 316452 | G7: 221782
A8: 3. | B8: Zászlúd + tartozékok | C8: 131321 | D8: 14.5 | E8: 319668 | F8: 248902 | G8: 70766
A9: 4. | B9: Számítógépek | C9: 131311 | D9: 33 | E9: 767563 | F9: 524766 | G9: 242797
A10: 5. | B10: Salgo polcrendszer | C10: 131321 | D10: 14.5 | E10: 277500 | F10: 205925 | G10: 71575
A11: 6. | B11: Napelemes sebességmérő | C11: 131321 | D11: 14.5 | E11: 897600 | F11: 492348 | G11: 405252
A12: 7. | B12: Bútorok | C12: 131321 | D12: 14.5 | E12: 4052297 | F12: 3068406 | G12: 983891
A13: 8. | B13: Notebook (NKÖH) | C13: 131311 | D13: 33 | E13: 148750 | F13: 62537 | G13: 86213
A14: 9. | B14: Notebook (közter.felügy.) | C14: 131311 | D14: 33 | E14: 211500 | F14: 122571 | G14: 88929
A15: 10. | B15: KONICA multifunkciós gép | C15: 131311 | D15: 33 | E15: 132000 | F15: 29598 | G15: 102402
A16: 11. | B16: Klíma | C16: 131321 | D16: 14.5 | E16: 195613 | F16: 13832 | G16: 181781
A17: Összesen: | E17: =SUM(E6:E16) -> 8555284 | F17: =SUM(F6:F16) -> 6035416 | G17: 2519868
A20: 2., Óvoda
A21: Ssz. | B21: Megnevezés | C21: Fkvi. Szla. | D21: Leírási kulcs (%) | E21: Bruttó érték | F21: Elszám. écs. | G21: Nettó érték
F22: 2011. XII. 31-ig | G22: 2011. XII. 31-ig
A23: 1. | B23: Mosogatógép | C23: 131321 | D23: 14.5 | E23: 132490 | F23: 5210 | G23: =SUM(E23-F23) -> 127280
A24: Összesen: | E24: =SUM(E23:E23) -> 132490 | F24: =SUM(F23) -> 5210 | G24: =SUM(E24-F24) -> 127280
A27: 3., Általános Iskola
A28: Ssz. | B28: Megnevezés | C28: Fkvi. Szla. | D28: Leírási kulcs (%) | E28: Bruttó érték | F28: Elszám. écs. | G28: Nettó érték
F29: 2011. XII. 31-ig | G29: 2011. XII. 31-ig
A30: 1. | B30: Öltözőszekrény | C30: 131321 | D30: 14.5 | E30: 447694 | F30: 279972 | G30: =SUM(E30-F30) -> 167722
A31: 2. | B31: Pianínó | C31: 131341 | D31: 14.5 | E31: 499000 | F31: 290015 | G31: 208985
A32: 3. | B32: Kombinált tanári asztal | C32: 13132 | D32: 14.5 | E32: 56000 | F32: 49944 | G32: 6056
A33: 4. | B33: Szerver számítógép | C33: 131311 | D33: 33 | E33: 120000 | F33: 41986 | G33: 78014
A34: 5. | B34: Fénymásoló | C34: 131311 | D34: 33 | E34: 420750 | F34: 281118 | G34: 139632
A35: Összesen: | E35: =SUM(E30:E34) -> 1543444 | F35: =SUM(F30:F34) -> 943035 | G35: 600409
A38: 4., ACSI, Eü.
A39: Ssz. | B39: Megnevezés | C39: Fkvi. Szla. | D39: Leírási kulcs (%) | E39: Bruttó érték | F39: Elszám. écs. | G39: Nettó érték
F40: 2011. XII. 31-ig | G40: 2011. XII. 31-ig
A41: 1. | B41: ACSI bútor | C41: 13132 | D41: 14.5 | E41: 220000 | F41: 199639 | G41: =SUM(E41-F41) -> 20361
A42: 2. | B42: ACSI audiométer | C42: 131321 | D42: 14.5 | E42: 270000 | F42: 162182 | G42: =SUM(E42-F42) -> 107818
A43: 3. | B43: Eü. Számítógép | C43: 131311 | D43: 33 | E43: 102000 | F43: 90513 | G43: =SUM(E43-F43) -> 11487
A44: 4. | B44: Eü. HG A1C mérő | C44: 131321 | D44: 14.5 | E44: 231563 | F44: 57493 | G44: =SUM(E44-F44) -> 174070
A45: Összesen: | E45: =SUM(E41:E44) -> 823563 | F45: =SUM(F41:F44) -> 509827 | G45: =SUM(E45-F45) -> 313736

Sheet 14-10
A1: 5., KEK
A2: Ssz. | B2: Megnevezés | C2: Fkvi. Szla. | D2: Leírási kulcs (%) | E2: Bruttó érték | F2: Elszám. écs. | G2: Nettó érték
F3: 2011. XII. 31-ig | G3: 2011. XII. 31-ig
A4: 1. | B4: Hangoszlop | C4: 13132 | D4: 14.5 | E4: 186250 | F4: 182947 | G4: =SUM(E4-F4) -> 3303
A5: 2. | B5: Vezeték nélküli csíptetős mikrofonszett | C5: 13132 | D5: 14.5 | E5: 134750 | F5: 132374 | G5: 2376
A6: 3. | B6: Keverőerősítő | C6: 13132 | D6: 14.5 | E6: 81625 | F6: 80183 | G6: 1442
A7: 4. | B7: Mobilszínpad | C7: 131321 | D7: 14.5 | E7: 1326082 | F7: 1047275 | G7: 278807
A8: 5. | B8: Számítógépek | C8: 131311 | D8: 33 | E8: 922925 | F8: 398264 | G8: 524661
A9: 6. | B9: Fénymásoló | C9: 131311 | D9: 33 | E9: 624500 | F9: 395233 | G9: 229267
A10: 7. | B10: Notebook | C10: 131311 | D10: 33 | E10: 651500 | F10: 167950 | G10: 483550
A11: 8. | B11: PANASONIC videokamera | C11: 131321 | D11: 14.5 | E11: 149990 | F11: 22404 | G11: 127586
A12: 9. | B12: Mágneses fal | C12: 131321 | D12: 14.5 | E12: 655875 | F12: 79152 | G12: 576723
A13: 10. | B13: Számítógép munkaállomás | C13: 131311 | D13: 33 | E13: 149750 | F13: 2979 | G13: 146771
A14: 11. | B14: EPSON projektor | C14: 131311 | D14: 33 | E14: 147125 | F14: 2926 | G14: 144199
A15: Összesen: | E15: =SUM(E4:E14) -> 5030372 | F15: =SUM(F4:F14) -> 2511687 | G15: 2518685
A18: 6., Sportkör
A19: Ssz. | B19: Megnevezés | C19: Fkvi. Szla. | D19: Leírási kulcs (%) | E19: Bruttó érték | F19: Elszám. écs. | G19: Nettó érték
F20: 2011. XII. 31-ig | G20: 2011. XII. 31-ig
A21: 1. | B21: Biliárdasztal | C21: 13132 | D21: 14.5 | E21: 102500 | F21: 89587 | G21: =SUM(E21-F21) -> 12913
A22: Összesen: | E22: =SUM(E21) -> 102500 | F22: =SUM(F21) -> 89587 | G22: =SUM(E22-F22) -> 12913
A25: 7., Könyvtár
A26: Ssz. | B26: Megnevezés | C26: Fkvi. Szla. | D26: Leírási kulcs (%) | E26: Bruttó érték | F26: Elszám. écs. | G26: Nettó érték
F27: 2011. XII. 31-ig | G27: 2011. XII. 31-ig
A28: 1. | B28: Informatikai rendszer | C28: 131311 | D28: 33 | E28: 550750 | F28: 430341 | G28: =SUM(E28-F28) -> 120409
A29: 2. | B29: Fénymásoló | C29: 131311 | D29: 33 | E29: 438500 | F29: 335895 | G29: 102605
A30: 3. | B30: Riasztó | C30: 131321 | D30: 14.5 | E30: 312706 | F30: 112333 | G30: 200373
A31: 4. | B31: Fa alakú dekoráció | C31: 131321 | D31: 14.5 | E31: 221500 | F31: 75429 | G31: 146071
A32: 5. | B32: Televízió | C32: 131321 | D32: 14.5 | E32: 161500 | F32: 53007 | G32: 108493
A33: 6. | B33: Asztal hullám alakú tetővel | C33: 13121 | D33: 14.5 | E33: 211200 | F33: 72763 | G33: 138437
A34: 7. | B34: Kölcsönzőpult | C34: 13121 | D34: 14.5 | E34: 1020000 | F34: 351415 | G34: 668585
A35: 8. | B35: Felnőttolvasó | C35: 131321 | D35: 14.5 | E35: 822000 | F35: 283198 | G35: 538802
A36: 9. | B36: Falbeépítés paddal | C36: 131321 | D36: 14.5 | E36: 999600 | F36: 344385 | G36: 655215
A37: 10. | B37: Folyóiratállvány | C37: 131321 | D37: 14.5 | E37: 322200 | F37: 113056 | G37: 209144
A38: 11. | B38: Könyvállványok | C38: 131321 | D38: 14.5 | E38: 3494280 | F38: 1226075 | G38: 2268205
A39: 12. | B39: Könyvtári pult | C39: 131321 | D39: 14.5 | E39: 584427 | F39: 135588 | G39: 448839
A40: 13. | B40: Video kaputelefon | C40: 131321 | D40: 14.5 | E40: 110263 | F40: 27684 | G40: 82579
A41: Összesen: | E41: =SUM(E28:E40) -> 9248926 | F41: =SUM(F28:F40) -> 3561169 | G41: 5687757

Sheet 14-11
A1: 8., Fogorvosi rendelő
A2: Ssz. | B2: Megnevezés | C2: Fkvi. Szla. | D2: Leírási kulcs (%) | E2: Bruttó érték | F2: Elszám. écs. | G2: Nettó érték
F3: 2011. XII. 31-ig | G3: 2011. XII. 31-ig
A4: 1. | B4: Bútorok | C4: 131321 | D4: 14.5 | E4: 1412640 | F4: 723087 | G4: =SUM(E4-F4) -> 689553
A5: 2. | B5: Sugárvédelmi függöny | C5: 131321 | D5: 14.5 | E5: 399360 | F5: 204422 | G5: =SUM(E5-F5) -> 194938
A6: Összesen: | E6: =SUM(E4:E5) -> 1812000 | F6: =SUM(F4:F5) -> 927509 | G6: =SUM(E6-F6) -> 884491
A8: 9., Községrendezés
A9: Ssz. | B9: Megnevezés | C9: Fkvi. Szla. | D9: Leírási kulcs (%) | E9: Bruttó érték | F9: Elszám. écs. | G9: Nettó érték
F10: 2011. XII. 31-ig | G10: 2011. XII. 31-ig
A11: 1. | B11: Térfigyelőrendszer | C11: 13132 | D11: 14.5 | E11: 3532117 | F11: 793440 | G11: =SUM(E11-F11) -> 2738677
A12: 2. | B12: Információs táblarendszer | C12: 13132 | D12: 14.5 | E12: 1059000 | F12: 306689 | G12: 752311
A13: 3. | B13: Traktorhoz vágóasztal | C13: 13132 | D13: 14.5 | E13: 150000 | F13: 134738 | G13: 15262
A14: 4. | B14: Utcai bútorok, kandeláber | C14: 131321 | D14: 14.5 | E14: 417600 | F14: 309063 | G14: 108537
A15: 5. | B15: Információs táblák | C15: 13311 | D15: 14.5 | E15: 432000 | F15: 240057 | G15: 191943
A16: 6. | B16: Motoros kasza | C16: 133151 | D16: 14.5 | E16: 204350 | F16: 103711 | G16: 100639
A17: 7. | B17: Zászlós eligazító tábla | C17: 13311 | D17: 14.5 | E17: 430000 | F17: 245263 | G17: 184737
A18: 11. | B18: Motorfűrész | C18: 13132 | D18: 14.5 | E18: 79065 | F18: 74926 | G18: 4139
A19: 12. | B19: Hirdetőtáblák | C19: 13132 | D19: 14.5 | E19: 1089850 | F19: 987677 | G19: 102173
A20: 13. | B20: Schönbrunn kerti padok | C20: 13132 | D20: 14.5 | E20: 187500 | F20: 172680 | G20: 14820
A21: 14. | B21: Térképes infotábla | C21: 13132 | D21: 14.5 | E21: 316825 | F21: 296814 | G21: 20011
A22: 16. | B22: Településköszöntő táblák | C22: 131321 | D22: 14.5 | E22: 525000 | F22: 309297 | G22: 215703
A23: 17. | B23: Vitrines hirdető eü-nél | C23: 131321 | D23: 14.5 | E23: 338625 | F23: 111149 | G23: 227476
A24: 18. | B24: Fűkasza | C24: 131321 | D24: 14.5 | E24: 528000 | F24: 206082 | G24: 321918
A25: 19. | B25: STIHL fűkasza | C25: 131321 | D25: 14.5 | E25: 216900 | F25: 22058 | G25: 194842
A26: 20. | B26: Kandeláber | C26: 131321 | D26: 14.5 | E26: 292500 | F26: 12782 | G26: 279718
A27: 21. | B27: AMAZON ZAU sószóró | C27: 131321 | D27: 14.5 | E27: 360000 | F27: 2574 | G27: 357426
A28: Összesen: | E28: =SUM(E11:E27) -> 10159332 | F28: =SUM(F11:F27) -> 4329000 | G28: 5830332
A32: Mindösszesen: | F32: =SUM('[1]14-9 gépek, berend.'!G17,'[1]14-9 gépek, berend.'!G24,'[1]14-9 gépek, berend.'!G35,'[1]14-9 gépek, berend.'!G45,'[1]14-10'!G15,'[1]14-10'!G22,'[1]14-10'!G41,'14-11'!G6,'14-11'!G28,) -> 18495471

Sheet 14-12
A1: Immateriális javak
A2: Ssz. | B2: Megnevezés | C2: Fkvi. Szla. | D2: Leírási kulcs (%) | E2: Bruttó érték | F2: Elszám. écs. | G2: Nettó érték
F3: 2011. XII. 31-ig | G3: 2011. XII. 31-ig
A4: 1. | B4: Könyvtár honlap | C4: 11341 | D4: 33 | E4: 750000 | F4: 452959 | G4: =SUM(E4-F4) -> 297041
A5: Összesen: | E5: =SUM(E4:E4) -> 750000 | F5: =SUM(F4:F4) -> 452959 | G5: =SUM(E5-F5) -> 297041
A9: Üzemeltetésre átadott eszközök
A10: Ssz. | B10: Megnevezés | C10: Fkvi. Szla. | D10: Leírási kulcs (%) | E10: Bruttó érték | F10: Elszám. écs. | G10: Nettó érték
F11: 2011. XII. 31-ig | G11: 2011. XII. 31-ig
A12: 1. | B12: Vízépítmény | C12: 12141 | D12: 3 | E12: 74103773 | F12: 32973212 | G12: =SUM(E12-F12) -> 41130561
A13: 2. | B13: Szennyvíz épület | C13: 121131 | D13: 2 | E13: 5366500 | F13: 3771859 | G13: =SUM(E13-F13) -> 1594641
A14: Összesen: | E14: =SUM(E12:E13) -> 79470273 | F14: =SUM(F12:F13) -> 36745071 | G14: =SUM(E14-F14) -> 42725202
A17: Járművek
A18: Ssz. | B18: Megnevezés | C18: Fkvi. Szla. | D18: Leírási kulcs (%) | E18: Bruttó érték | F18: Elszám. écs. | G18: Nettó érték
F19: 2011. XII. 31-ig | G19: 2011. XII. 31-ig
A20: 1. | B20: Pasquali EOS traktor | C20: 133111 | D20: 20 | E20: 5400000 | F20: 2909340 | G20: =SUM(E20-F20) -> 2490660
A21: Összesen: | E21: =SUM(E20:E20) -> 5400000 | F21: =SUM(F20) -> 2909340 | G21: =SUM(E21-F21) -> 2490660

Sheet 15.
A1: Sorszám | B1: Kötelezettségvállalás megnevezése | C1: Értéke
A3: 1. | B3: Korényi és Társai Építés KFT | C3: 1000
A4: 2. | B4: Pannon Mérnöki Építő Szolg. KFT | C4: 438
A5: 3. | B5: DENKSTATT Hungary KFT (hulladékgazdálkodási terv ) | C5: 281
A6: 4. | B6: Korényi és Társai Építés KFT (szabályozási terv ) | C6: 563
A7: 5. | B7: Korényi és Társai Építés KFT (szabályozási terv ) | C7: 500
A8: 6. | B8: Korényi és Társai Építés KFT (szabályozási terv ) | C8: 63

Sheet 16.
A1: Bevételek megnevezése | B1: Előirányzat | D1: Teljesítés | E1: %
B2: eredeti | C2: módosított
A3: Támogatásértékű kiadások | B3: =SUM(B4:B7) -> 6800 | C3: =SUM(C4:C7) -> 6800 | D3: 5293 | E3: =SUM(D3/C3) -> 0.7783823529
A4: Ügyeleti díj | B4: 2007 | C4: 2007 | D4: 1887 | E4: =SUM(D4/C4) -> 0.9402092676
A5: NKÖH támogatása | D5: 356
A6: Környezetvédelmi alap | D6: 231
A7: Kistérség részére pénzeszköz átadása és nevelési tanácsadás támogatása | B7: 4793 | C7: 4793 | D7: 2819 | E7: =SUM(D7/C7) -> 0.5881493845
A8: Működési célú pénzeszköz-átadások | B8: =SUM(B9:B9) -> 2732 | C8: =SUM(C9:C11) -> 43335 | D8: =SUM(D9:D11) -> 42442 | E8: =SUM(D8/C8) -> 0.9793931003
A9: Civil szervezetek működési és programtámogatása | B9: 2732 | C9: 3132 | D9: 2239 | E9: =SUM(D9/C9) -> 0.7148786718
A10: Víz-és csatornaközmű támogatása (ÉTV Kft.) | C10: 40203 | D10: 40203 | E10: =SUM(D10/C10) -> 1
A12: Felhalmozási célú pénzeszközátadás
A13: Társadalom- és szociálpolitikai juttatások | B13: =SUM(B14:B24) -> 11625 | C13: =SUM(C14:C24) -> 16240 | D13: =SUM(D14:D24) -> 15219 | E13: =SUM(D13/C13) -> 0.9371305419
A14: Lakásfenntartási támogatás (normatív) | B14: 100 | C14: 145 | D14: 118 | E14: 0.8137931034
A15: Lakásfenntartási támogatás (helyi rendelet alapján) | B15: 3200 | C15: 3200 | D15: 2657 | E15: 0.8303125
A16: Nomatív ápolási díj | B16: 570 | C16: 1686 | D16: 1575 | E16: 0.9341637011
A17: Ápolási díj méltányossági alapon | B17: 1855 | C17: 1855 | D17: 1300 | E17: 0.7008086253
A18: Temetési segély | B18: 300 | C18: 300 | D18: 140 | E18: 0.4666666667
A19: Rendkívüli gyermekvédelmi támogatás | B19: 3700 | C19: 4900 | D19: 5010 | E19: 1.02244898
A20: Rendszeres gyermekvédelmi támogatás | C20: 417 | D20: 417 | E20: 1
A21: Átmeneti szociális segély | B21: 1000 | C21: 2000 | D21: 2430 | E21: 1.215
A22: Közgyógyellátás | B22: 400 | C22: 400 | D22: 236 | E22: 0.59
A23: Nem foglalkoztatott személyek rendszeres szociális segélye | B23: 500 | C23: 1281 | D23: 1280 | E23: 0.9992193599
A24: Közlekedési támogatás | C24: 56 | D24: 56 | E24: 1
A25: Ellátottak pénzbeni juttatásai | B25: 600 | C25: 705 | D25: 705 | E25: 1
A26: Szociális kölcsön | B26: 500 | C26: 1318 | D26: 1315 | E26: 0.997723824

Sheet 18.
A1: Bevételi jogcím | B1: Kedvezmény nélkül elérhető bevétel | C1: Kedvezmények összege
A2: Ellátottak térítési díjának elengedése (helyi rendelet alapján) | B2: 9819 | C2: 169
A3: Ellátottak kártérítésének elengedése
A4: Lakosság részére lakásépítéshez nyújtott kölcsön elengedése
A5: Lakosság részére lakásfelújításhoz nyújtott kölcsön elengedése
A6: ……………………………-ból biztosított kedvezmény, mentesség
A7: ……………………………-ból biztosított kedvezmény, mentesség
A8: ……………………………-ból biztosított kedvezmény, mentesség
A9: Iparűzési adó | B9: 230761 | C9: 5700
A10: Késedelmi pótlék
A11: Mulasztási bírság
A31: Összesen: | B31: =SUM(B2:B11) -> 240580 | C31: =SUM(C2:C11) -> 5869

Sheet 19.
A1: Megnevezés | B1: 2011. évi kiadás
A3: Biatorbágy ügyelet támogatása | B3: 1887
A4: Budaörs Kistérség, nevelési tanácsadás | B4: 2819
A5: Környezetvédelmi alap | B5: 231
A6: NKÖH támogatása | B6: 356
A7: Támogatásértékű kiadások összesen | B7: 5293
A12: Budaörsi Állatvédő Egyesület | B12: 500
A13: ZSÁMERT | B13: 32
A14: Mozgáskorlátozottak támogatása | B14: 100
A15: Zsámbéki Medence idegenforgalmi tagdíj | B15: 30
A16: Labdarózsa Kórus | B16: 38
A17: Helyiek Herceghalomért (HEHE) | B17: 38
A18: Baba - klub | B18: 40
A19: Közbiztonságért Alapítvány | B19: 1200
A20: Nyugdíjas Klub | B20: 164
A21: Pest Megyei Területfejlesztési Tanács | B21: 97
A22: ÉTV részére pénzeszközátadás | B22: 40203
A23: Pénzeszközátadások összesen | B23: =SUM(B12:B22) -> 42442
A28: Támogatások, pénzeszközátadások összesen | B28: =SUM(B7,B23,) -> 47735

Sheet 20.
A1: Társaság neve | B1: Részvény (részesedés) névértéke | C1: Bekerülési ár | D1: Könyv szerinti érték 2010. XII. 31. | E1: Befektetést igazoló okmány | F1: Tárolás helye | G1: Tőzsdei árfolyam
A6: ÉTV Kft. | B6: 4420 | C6: 4420 | D6: 4470 | E6: Tagsági szerződés
A7: ELMŰ Nyrt. | B7: 3250 | C7: 3250 | D7: 3250 | E7: Letéti igazolás | F7: OTP Bank Nyrt.
A9: Összesen: | B9: =SUM(B6:B8) -> 7670 | C9: =SUM(C6:C8) -> 7670 | D9: =SUM(D6:D8) -> 7720

Sheet 21.
A1: Pályázat száma | B1: Megnevezés | C1: Tervezett kiadás összege | D1: Tervezett források összege | F1: Ebből 2011.XII.31-ig kiutalt | G1: Megvalósulás éve
D2: Önrész | E2: EU-s támogatás
A3: KMOP 5.2.1/a-2008-0006 | B3: Faluközpont fejlesztése | C3: 197395 | D3: 110699 | E3: 86696 | F3: 86104 | G3: 2008-2010
A4: TÁMOP 3.2.4/08/1/KMR-2009-0005 | B4: Könyvtár bekapcsolása az országos adatbázisba | C4: 7537 | E4: 7537 | F4: 7136 | G4: 2010
A5: KMOP 4.6.1/P-09-2010-0022 | B5: Óvodabővítés | C5: 159585 | D5: 63206 | E5: 96379 | F5: 91064 | G5: 2009-2010
A13: Összesen: | C13: =SUM(C3:C12) -> 364517 | D13: =SUM(D3:D12) -> 173905 | E13: =SUM(E3:E12) -> 190612 | F13: =SUM(F3:F12) -> 184304
A16: A faluközpont fejlesztése és a könyvtár bekapcsolása az országos adatbázisba pályázatok tervezett támogatási összege változott, | G16: átozott a
A17: 2011.12.31-ig ténylegesen kiutalt támogatási összegre, az óvoda záró elszámolásaként 2012 januárban | F17: 4590 ezer Ft érkezett számlánkra.

Sheet Munka1
